Workbook

Sheet Debt Avalanche
R2: Instructions:
C3: Debt Avalanche Calculator | K3: Extra Monthly Payment | L3: $300.00 | N3: (beyond minimum debt payments) | R3: 1) Fill in cells L3 and L4: the monthly amount you can put toward your debt and the
K4: One-Time Start-up Payment | L4: $100.00 | N4: (from cash you have in savings) | R4: one-time amount you can scrounge up to get things rolling.
R5: 2) Fill in your debts (starting in cell D13) from largest interest to smallest.
C6: Provided by: LifeAndMyFinances.com | I6: Like the sheet? Need a bigger one with more inputs? We sell one on Etsy for just $3.99. Click here to check it out! | R6: Include the debt amount and minimum payments.
C7: Copyright 2022 | R7: 3) Scroll down to see how quickly you could get out of debt!
C10: Highest Interest | X10: Lowest Interest
C12: Debt 1 | E12: Debt 2 | H12: Debt 3 | K12: Debt 4 | N12: Debt 5 | Q12: Debt 6 | T12: Debt 7 | W12: Debt 8
C13: Balance | D13: $3,400.00 | E13: Balance | F13: $2,000.00 | H13: Balance | I13: $1,800.00 | K13: Balance | L13: $7,500.00 | N13: Balance | O13: $2,800.00 | Q13: Balance | R13: $2,500.00 | T13: Balance | U13: $5,000.00 | W13: Balance | X13: 0
C14: Minimum Payment | D14: $45.00 | E14: Minimum Payment | F14: $30.00 | H14: Minimum Payment | I14: $30.00 | K14: Minimum Payment | L14: $150.00 | N14: Minimum Payment | O14: $41.00 | Q14: Minimum Payment | R14: $75.00 | T14: Minimum Payment | U14: $233.00 | W14: Minimum Payment | X14: 0
C15: Interest Rate | D15: 23.7% | E15: Interest Rate | F15: 22.7% | H15: Interest Rate | I15: 21.9% | K15: Interest Rate | L15: 20.6% | N15: Interest Rate | O15: 20.0% | Q15: Interest Rate | R15: 18.0% | T15: Interest Rate | U15: 9.6% | W15: Interest Rate | X15: 0.0%
B17: Month | C17: Payment | D17: Balance | E17: Payment | F17: Balance | G17: Min Pmnt Available | H17: Payment | I17: Balance | J17: Min Pmnt Available | K17: Payment | L17: Balance | M17: Min Pmnt Available | N17: Payment | O17: Balance | P17: Min Pmnt Available | Q17: Payment | R17: Balance | S17: Min Pmnt Available | T17: Payment | U17: Balance | V17: Min Pmnt Available | W17: Payment | X17: Balance | Y17: Min Pmnt Available
B18: 1 | C18: =IF((L4+L3)>=D13,D13,(L3+L4+D14)) -> $445.00 | D18: =IF(D13-C18<=0,0,(D13-C18)) -> $2,955.00 | E18: =IF((L3+L4)>=(D13+F13),F13,IF(AND(C18=D13,C18<>0),(L3+L4-D13+F14),F14)) -> $30.00 | F18: =IF(F13-E18<=0,0,(F13-E18)) -> $1,970.00 | G18: 0 | H18: =IF((L3+L4)>=(F13+I13+D13),I13,IF(AND(E18=F13, E18<>0),(L3+L4-F13-D13+I14),I14)) -> $30.00 | I18: =IF(I13-H18<=0,0,(I13-H18)) -> $1,770.00 | J18: 0 | K18: =IF((L3+L4)>=(I13+L13+F13+D13),L13,IF(AND(H18=I13, H18<>0),(L3+L4-I13-F13-D13+L14),L14)) -> $150.00 | L18: =IF(L13-K18<=0,0,(L13-K18)) -> $7,350.00 | M18: 0 | N18: =IF((L3+L4)>=(L13+O13+I13+F13+D13),O13,IF(AND(K18=L13,K18<>0),(L3+L4-L13-I13-F13-D13+O14),O14)) -> $41.00 | O18: =IF(O13-N18<=0,0,(O13-N18)) -> $2,759.00 | P18: 0 | Q18: =IF((L3+L4)>=(O13+R13+L13+I13+F13+D13),R13,IF(AND(N18=O13,N18<>0),(L3+L4-O13-L13-I13-F13-D13+R14),R14)) -> $75.00 | R18: =IF(R13-Q18<=0,0,(R13-Q18)) -> $2,425.00 | S18: 0 | T18: =IF(($L$3+$L$4)>=(R13+U13+O13+L13+I13+F13+D13),U13,IF(AND(Q18=R$13,Q18<>0),($L$3+$L$4-R13-O13-L13-I13-F13-D13+U14),U14)) -> $233.00 | U18: =IF(U13-T18<=0,0,(U13-T18)) -> $4,767.00 | V18: 0 | W18: =IF(($L$3+$L$4)>=(U13+X13+R13+O13+L13+I13+F13+D13),X13,IF(AND(T18=U$13,T18<>0),($L$3+$L$4-U13-R13-O13-L13-I13-F13-D13+X14),X14)) -> 0 | X18: =IF(X13-W18<=0,0,(X13-W18)) -> 0 | Y18: 0
B19: 2 | C19: =IF((D18-$L$3-$D$14-SUM(G19,J19,M19,P19,S19,V19,Y19))<=0,($L$3+(D18-$L$3)),($L$3+$D$14+SUM(G19,J19,M19,P19,S19,V19,Y19))) -> $345.00 | D19: =IF((D18-C19)<=0.0001,0,(D18-C19)*(1+(D$15/12))) -> $2,661.44 | E19: =IF(AND(((F18-$L$3+C19-F$14-D$14-SUM(J19,M19,P19,S19,V19,Y19))<=0),D19=0),F18,IF(D19=0,$L$3-C19+F$14+D$14+SUM(J19,M19,P19,S19,V19,Y19),F$14)) -> $30.00 | F19: =IF((F18-E19)<=0.0001,0,(F18-E19)*(1+(F$15/12))) -> $1,976.76 | G19: =IF(F18=0,F$14,0) -> 0 | H19: =IF(AND(((I18-$L$3+E19+C19-I$14-F$14-D$14-SUM(M19,P19,S19,V19,Y19))<=0),F19+D19=0),I18,IF(I$14>=I18,I18,IF(AND(F19=0,D19=0),$L$3-E19-C19+I$14+F$14+D$14+SUM(M19,P19,S19,V19,Y19),I$14))) -> $30.00 | I19: =IF((I18-H19)<=0.0001,0,(I18-H19)*(1+(I$15/12))) -> $1,771.76 | J19: =IF(I18=0,I$14,0) -> 0 | K19: =IF(AND(((L18-$L$3+H19+E19+C19-L$14-I$14-F$14-D$14-SUM(P19,S19,V19,Y19))<=0),I19+F19+D19=0),L18,IF(L$14>=L18,L18, IF(AND(I19=0,F19=0,D19=0),$L$3-H19-E19-C19+L$14+I$14+F$14+D$14+SUM(P19,S19,V19,Y19),L$14))) -> $150.00 | L19: =IF((L18-K19)<=0.0001,0,(L18-K19)*(1+(L$15/12))) -> $7,323.60 | M19: =IF(L18=0,L$14,0) -> 0 | N19: =IF(AND(((O18-$L$3+K19+H19+E19+C19-O$14-L$14-I$14-F$14-D$14-SUM(S19,V19,Y19))<=0),L19+I19+F19+D19=0),O18,IF(O$14>=O18,O18,IF(AND(L19=0,I19=0,F19=0,D19=0),$L$3-K19-H19-E19-C19+O$14+L$14+I$14+F$14+D$14+SUM(S19,V19,Y19),O$14))) -> $41.00 | O19: =IF((O18-N19)<=0.0001,0,(O18-N19)*(1+(O$15/12))) -> $2,763.30 | P19: =IF(O18=0,O$14,0) -> 0 | Q19: =IF(AND(((R18-$L$3+N19+K19+H19+E19+C19-R$14-O$14-L$14-I$14-F$14-D$14-SUM(V19,Y19))<=0),O19+L19+I19+F19+D19=0),R18,IF(R$14>=R18,R18,IF(AND(O19=0,L19=0,I19=0,F19=0),$L$3-N19-K19-H19-E19-C19+R$14+O$14+L$14+I$14+F$14+D$14+SUM(V19,Y19),R$14))) -> $75.00 | R19: =IF((R18-Q19)<=0.0001,0,(R18-Q19)*(1+(R$15/12))) -> $2,385.25 | S19: =IF(R18=0,R$14,0) -> 0 | T19: =IF(AND(((U18-$L$3+Q19+N19+K19+H19+E19+C19-U$14-R$14-O$14-L$14-I$14-F$14-D$14-SUM(Y19))<=0),R19+O19+L19+I19+F19+D19=0),U18,IF(U$14>=U18,U18,IF(AND(R19=0,O19=0,L19=0,I19=0,F19=0,D19=0),$L$3-Q19-N19-K19-H19-E19-C19+U$14+R$14+O$14+L$14+I$14+F$14+D$14+SUM(Y19),U$14))) -> $233.00 | U19: =IF((U18-T19)<=0.0001,0,(U18-T19)*(1+(U$15/12))) -> $4,570.27 | V19: =IF(U18=0,U$14,0) -> 0 | W19: =IF(AND(((X18-$L$3+T19+Q19+N19+K19+H19+E19+C19-X$14-U$14-R$14-O$14-L$14-I$14-F$14-D$14)<=0),U19+R19+O19+L19+I19+F19+D19=0),X18,IF(X$14>=X18,X18,IF(AND(U19=0,R19=0,O19=0,L19=0,I19=0,F19=0,D19=0),$L$3-T19-Q19-N19-K19-H19-E19-C19+X$14+U$14+R$14+O$14+L$14+I$14+F$14+D$14,X$14))) -> 0 | X19: =IF((X18-W19)<=0.0001,0,(X18-W19)*(1+(X$15/12))) -> 0 | Y19: =IF(X18=0,X$14,0) -> 0
B20: 3 | C20: =IF((D19-$L$3-$D$14-SUM(G20,J20,M20,P20,S20,V20,Y20))<=0,($L$3+(D19-$L$3)),($L$3+$D$14+SUM(G20,J20,M20,P20,S20,V20,Y20))) -> $345.00 | D20: =IF((D19-C20)<=0.0001,0,(D19-C20)*(1+(D$15/12))) -> $2,362.09 | E20: =IF(AND(((F19-$L$3+C20-F$14-D$14-SUM(J20,M20,P20,S20,V20,Y20))<=0),D20=0),F19,IF(D20=0,$L$3-C20+F$14+D$14+SUM(J20,M20,P20,S20,V20,Y20),F$14)) -> $30.00 | F20: $1,983.65 | G20: =IF(F19=0,F$14,0) -> 0 | H20: =IF(AND(((I19-$L$3+E20+C20-I$14-F$14-D$14-SUM(M20,P20,S20,V20,Y20))<=0),F20+D20=0),I19,IF(I$14>=I19,I19,IF(AND(F20=0,D20=0),$L$3-E20-C20+I$14+F$14+D$14+SUM(M20,P20,S20,V20,Y20),I$14))) -> $30.00 | I20: =IF((I19-H20)<=0.0001,0,(I19-H20)*(1+(I$15/12))) -> $1,773.54 | J20: =IF(I19=0,I$14,0) -> 0 | K20: =IF(AND(((L19-$L$3+H20+E20+C20-L$14-I$14-F$14-D$14-SUM(P20,S20,V20,Y20))<=0),I20+F20+D20=0),L19,IF(L$14>=L19,L19, IF(AND(I20=0,F20=0,D20=0),$L$3-H20-E20-C20+L$14+I$14+F$14+D$14+SUM(P20,S20,V20,Y20),L$14))) -> $150.00 | L20: =IF((L19-K20)<=0.0001,0,(L19-K20)*(1+(L$15/12))) -> $7,296.75 | M20: =IF(L19=0,L$14,0) -> 0 | N20: =IF(AND(((O19-$L$3+K20+H20+E20+C20-O$14-L$14-I$14-F$14-D$14-SUM(S20,V20,Y20))<=0),L20+I20+F20+D20=0),O19,IF(O$14>=O19,O19,IF(AND(L20=0,I20=0,F20=0,D20=0),$L$3-K20-H20-E20-C20+O$14+L$14+I$14+F$14+D$14+SUM(S20,V20,Y20),O$14))) -> $41.00 | O20: =IF((O19-N20)<=0.0001,0,(O19-N20)*(1+(O$15/12))) -> $2,767.67 | P20: =IF(O19=0,O$14,0) -> 0 | Q20: =IF(AND(((R19-$L$3+N20+K20+H20+E20+C20-R$14-O$14-L$14-I$14-F$14-D$14-SUM(V20,Y20))<=0),O20+L20+I20+F20+D20=0),R19,IF(R$14>=R19,R19,IF(AND(O20=0,L20=0,I20=0,F20=0),$L$3-N20-K20-H20-E20-C20+R$14+O$14+L$14+I$14+F$14+D$14+SUM(V20,Y20),R$14))) -> $75.00 | R20: =IF((R19-Q20)<=0.0001,0,(R19-Q20)*(1+(R$15/12))) -> $2,344.90 | S20: =IF(R19=0,R$14,0) -> 0 | T20: =IF(AND(((U19-$L$3+Q20+N20+K20+H20+E20+C20-U$14-R$14-O$14-L$14-I$14-F$14-D$14-SUM(Y20))<=0),R20+O20+L20+I20+F20+D20=0),U19,IF(U$14>=U19,U19,IF(AND(R20=0,O20=0,L20=0,I20=0,F20=0,D20=0),$L$3-Q20-N20-K20-H20-E20-C20+U$14+R$14+O$14+L$14+I$14+F$14+D$14+SUM(Y20),U$14))) -> $233.00 | U20: =IF((U19-T20)<=0.0001,0,(U19-T20)*(1+(U$15/12))) -> $4,371.97 | V20: =IF(U19=0,U$14,0) -> 0 | W20: =IF(AND(((X19-$L$3+T20+Q20+N20+K20+H20+E20+C20-X$14-U$14-R$14-O$14-L$14-I$14-F$14-D$14)<=0),U20+R20+O20+L20+I20+F20+D20=0),X19,IF(X$14>=X19,X19,IF(AND(U20=0,R20=0,O20=0,L20=0,I20=0,F20=0,D20=0),$L$3-T20-Q20-N20-K20-H20-E20-C20+X$14+U$14+R$14+O$14+L$14+I$14+F$14+D$14,X$14))) -> 0 | X20: =IF((X19-W20)<=0.0001,0,(X19-W20)*(1+(X$15/12))) -> 0 | Y20: =IF(X19=0,X$14,0) -> 0
B21: 4 | C21: $345.00 | D21: =IF((D20-C21)<=0.0001,0,(D20-C21)*(1+(D$15/12))) -> $2,056.85 | E21: $30.00 | F21: $1,990.68 | G21: =IF(F20=0,F$14,0) -> 0 | H21: $30.00 | I21: $1,775.36 | J21: =IF(I20=0,I$14,0) -> 0 | K21: $150.00 | L21: $7,269.43 | M21: =IF(L20=0,L$14,0) -> 0 | N21: $41.00 | O21: $2,772.12 | P21: =IF(O20=0,O$14,0) -> 0 | Q21: $75.00 | R21: =IF((R20-Q21)<=0.0001,0,(R20-Q21)*(1+(R$15/12))) -> $2,303.95 | S21: =IF(R20=0,R$14,0) -> 0 | T21: $233.00 | U21: $4,172.08 | V21: =IF(U20=0,U$14,0) -> 0 | W21: 0 | X21: 0 | Y21: =IF(X20=0,X$14,0) -> 0
B22: 5 | C22: $345.00 | D22: =IF((D21-C22)<=0.0001,0,(D21-C22)*(1+(D$15/12))) -> $1,745.58 | E22: $30.00 | F22: $1,997.83 | G22: 0 | H22: $30.00 | I22: $1,777.21 | J22: 0 | K22: $150.00 | L22: $7,241.65 | M22: 0 | N22: $41.00 | O22: $2,776.63 | P22: 0 | Q22: $75.00 | R22: $2,262.39 | S22: =IF(R21=0,R$14,0) -> 0 | T22: $233.00 | U22: $3,970.59 | V22: =IF(U21=0,U$14,0) -> 0 | W22: 0 | X22: 0 | Y22: =IF(X21=0,X$14,0) -> 0
B23: 6 | C23: $345.00 | D23: $1,428.19 | E23: $30.00 | F23: $2,005.12 | G23: 0 | H23: $30.00 | I23: $1,779.10 | J23: 0 | K23: $150.00 | L23: $7,213.39 | M23: 0 | N23: $41.00 | O23: $2,781.23 | P23: 0 | Q23: $75.00 | R23: $2,220.20 | S23: =IF(R22=0,R$14,0) -> 0 | T23: $233.00 | U23: $3,767.50 | V23: =IF(U22=0,U$14,0) -> 0 | W23: 0 | X23: 0 | Y23: =IF(X22=0,X$14,0) -> 0
B24: 7 | C24: $345.00 | D24: $1,104.53 | E24: $30.00 | F24: $2,012.55 | G24: 0 | H24: $30.00 | I24: $1,781.02 | J24: 0 | K24: $150.00 | L24: $7,184.64 | M24: 0 | N24: $41.00 | O24: $2,785.90 | P24: 0 | Q24: $75.00 | R24: $2,177.38 | S24: =IF(R23=0,R$14,0) -> 0 | T24: $233.00 | U24: $3,562.77 | V24: =IF(U23=0,U$14,0) -> 0 | W24: 0 | X24: 0 | Y24: =IF(X23=0,X$14,0) -> 0
B25: 8 | C25: $345.00 | D25: $774.50 | E25: $30.00 | F25: $2,020.12 | G25: 0 | H25: $30.00 | I25: $1,782.98 | J25: 0 | K25: $150.00 | L25: $7,155.41 | M25: 0 | N25: $41.00 | O25: $2,790.65 | P25: 0 | Q25: $75.00 | R25: $2,133.91 | S25: =IF(R24=0,R$14,0) -> 0 | T25: $233.00 | U25: $3,356.41 | V25: =IF(U24=0,U$14,0) -> 0 | W25: 0 | X25: 0 | Y25: =IF(X24=0,X$14,0) -> 0
B26: 9 | C26: $345.00 | D26: $437.97 | E26: $30.00 | F26: $2,027.83 | G26: 0 | H26: $30.00 | I26: $1,784.97 | J26: 0 | K26: $150.00 | L26: $7,125.67 | M26: 0 | N26: $41.00 | O26: $2,795.47 | P26: 0 | Q26: $75.00 | R26: $2,089.79 | S26: =IF(R25=0,R$14,0) -> 0 | T26: $233.00 | U26: $3,148.40 | V26: =IF(U25=0,U$14,0) -> 0 | W26: 0 | X26: 0 | Y26: =IF(X25=0,X$14,0) -> 0
B27: 10 | C27: $345.00 | D27: $94.80 | E27: $30.00 | F27: $2,035.69 | G27: 0 | H27: $30.00 | I27: $1,787.00 | J27: 0 | K27: $150.00 | L27: $7,095.41 | M27: 0 | N27: $41.00 | O27: $2,800.38 | P27: 0 | Q27: $75.00 | R27: $2,045.02 | S27: =IF(R26=0,R$14,0) -> 0 | T27: $233.00 | U27: $2,938.72 | V27: =IF(U26=0,U$14,0) -> 0 | W27: 0 | X27: 0 | Y27: =IF(X26=0,X$14,0) -> 0
B28: 11 | C28: $94.80 | D28: 0 | E28: $280.20 | F28: $1,788.76 | G28: 0 | H28: $30.00 | I28: $1,789.06 | J28: 0 | K28: $150.00 | L28: $7,064.64 | M28: 0 | N28: $41.00 | O28: $2,805.37 | P28: 0 | Q28: $75.00 | R28: $1,999.57 | S28: =IF(R27=0,R$14,0) -> 0 | T28: $233.00 | U28: $2,727.37 | V28: =IF(U27=0,U$14,0) -> 0 | W28: 0 | X28: 0 | Y28: =IF(X27=0,X$14,0) -> 0
B29: 12 | C29: 0 | D29: 0 | E29: $375.00 | F29: =IF((F28-E29)<=0.0001,0,(F28-E29)*(1+(F$15/12))) -> $1,440.55 | G29: 0 | H29: $30.00 | I29: $1,791.17 | J29: 0 | K29: $150.00 | L29: $7,033.35 | M29: 0 | N29: $41.00 | O29: $2,810.45 | P29: 0 | Q29: $75.00 | R29: $1,953.44 | S29: =IF(R28=0,R$14,0) -> 0 | T29: $233.00 | U29: $2,514.32 | V29: =IF(U28=0,U$14,0) -> 0 | W29: 0 | X29: 0 | Y29: =IF(X28=0,X$14,0) -> 0
B30: 13 | C30: 0 | D30: 0 | E30: $375.00 | F30: $1,085.74 | G30: 0 | H30: $30.00 | I30: $1,793.31 | J30: 0 | K30: $150.00 | L30: $7,001.51 | M30: 0 | N30: $41.00 | O30: $2,815.60 | P30: 0 | Q30: $75.00 | R30: $1,906.61 | S30: =IF(R29=0,R$14,0) -> 0 | T30: $233.00 | U30: $2,299.57 | V30: =IF(U29=0,U$14,0) -> 0 | W30: 0 | X30: 0 | Y30: =IF(X29=0,X$14,0) -> 0
B31: 14 | C31: 0 | D31: 0 | E31: $375.00 | F31: $724.21 | G31: 0 | H31: $30.00 | I31: $1,795.49 | J31: 0 | K31: $150.00 | L31: $6,969.13 | M31: 0 | N31: $41.00 | O31: $2,820.85 | P31: 0 | Q31: $75.00 | R31: $1,859.09 | S31: =IF(R30=0,R$14,0) -> 0 | T31: $233.00 | U31: $2,083.10 | V31: =IF(U30=0,U$14,0) -> 0 | W31: 0 | X31: 0 | Y31: =IF(X30=0,X$14,0) -> 0
B32: 15 | C32: 0 | D32: 0 | E32: $375.00 | F32: $355.83 | G32: 0 | H32: $30.00 | I32: $1,797.71 | J32: 0 | K32: $150.00 | L32: $6,936.19 | M32: 0 | N32: $41.00 | O32: $2,826.18 | P32: 0 | Q32: $75.00 | R32: $1,810.85 | S32: =IF(R31=0,R$14,0) -> 0 | T32: $233.00 | U32: $1,864.90 | V32: =IF(U31=0,U$14,0) -> 0 | W32: 0 | X32: 0 | Y32: =IF(X31=0,X$14,0) -> 0
B33: 16 | C33: 0 | D33: 0 | E33: $355.83 | F33: 0 | G33: 0 | H33: $49.17 | I33: $1,780.45 | J33: 0 | K33: $150.00 | L33: $6,902.68 | M33: 0 | N33: $41.00 | O33: $2,831.60 | P33: 0 | Q33: $75.00 | R33: $1,761.89 | S33: =IF(R32=0,R$14,0) -> 0 | T33: $233.00 | U33: $1,644.96 | V33: =IF(U32=0,U$14,0) -> 0 | W33: 0 | X33: 0 | Y33: =IF(X32=0,X$14,0) -> 0
B34: 17 | C34: 0 | D34: 0 | E34: 0 | F34: 0 | G34: $30.00 | H34: $405.00 | I34: $1,400.55 | J34: 0 | K34: $150.00 | L34: $6,868.61 | M34: 0 | N34: $41.00 | O34: $2,837.11 | P34: 0 | Q34: $75.00 | R34: $1,712.19 | S34: =IF(R33=0,R$14,0) -> 0 | T34: $233.00 | U34: $1,423.26 | V34: =IF(U33=0,U$14,0) -> 0 | W34: 0 | X34: 0 | Y34: =IF(X33=0,X$14,0) -> 0
B35: 18 | C35: 0 | D35: 0 | E35: 0 | F35: 0 | G35: $30.00 | H35: $405.00 | I35: $1,013.72 | J35: 0 | K35: $150.00 | L35: $6,833.94 | M35: 0 | N35: $41.00 | O35: $2,842.71 | P35: 0 | Q35: $75.00 | R35: $1,661.75 | S35: =IF(R34=0,R$14,0) -> 0 | T35: $233.00 | U35: $1,199.78 | V35: =IF(U34=0,U$14,0) -> 0 | W35: 0 | X35: 0 | Y35: =IF(X34=0,X$14,0) -> 0
B36: 19 | C36: 0 | D36: 0 | E36: 0 | F36: 0 | G36: $30.00 | H36: $405.00 | I36: $619.83 | J36: 0 | K36: $150.00 | L36: $6,798.68 | M36: 0 | N36: $41.00 | O36: $2,848.40 | P36: 0 | Q36: $75.00 | R36: $1,610.55 | S36: =IF(R35=0,R$14,0) -> 0 | T36: $233.00 | U36: $974.51 | V36: =IF(U35=0,U$14,0) -> 0 | W36: 0 | X36: 0 | Y36: =IF(X35=0,X$14,0) -> 0
B37: 20 | C37: 0 | D37: 0 | E37: 0 | F37: 0 | G37: $30.00 | H37: $405.00 | I37: $218.75 | J37: 0 | K37: $150.00 | L37: $6,762.82 | M37: 0 | N37: $41.00 | O37: $2,854.19 | P37: 0 | Q37: $75.00 | R37: $1,558.58 | S37: =IF(R36=0,R$14,0) -> 0 | T37: $233.00 | U37: $747.44 | V37: =IF(U36=0,U$14,0) -> 0 | W37: 0 | X37: 0 | Y37: =IF(X36=0,X$14,0) -> 0
B38: 21 | C38: 0 | D38: 0 | E38: 0 | F38: 0 | G38: $30.00 | H38: $218.75 | I38: 0 | J38: 0 | K38: $336.25 | L38: $6,536.89 | M38: 0 | N38: $41.00 | O38: $2,860.08 | P38: 0 | Q38: $75.00 | R38: $1,505.83 | S38: =IF(R37=0,R$14,0) -> 0 | T38: $233.00 | U38: $518.56 | V38: =IF(U37=0,U$14,0) -> 0 | W38: 0 | X38: 0 | Y38: =IF(X37=0,X$14,0) -> 0
B39: 22 | C39: 0 | D39: 0 | E39: 0 | F39: 0 | G39: $30.00 | H39: 0 | I39: 0 | J39: $30.00 | K39: $555.00 | L39: $6,084.58 | M39: 0 | N39: $41.00 | O39: $2,866.06 | P39: 0 | Q39: $75.00 | R39: $1,452.30 | S39: =IF(R38=0,R$14,0) -> 0 | T39: $233.00 | U39: $287.84 | V39: =IF(U38=0,U$14,0) -> 0 | W39: 0 | X39: 0 | Y39: =IF(X38=0,X$14,0) -> 0
B40: 23 | C40: 0 | D40: 0 | E40: 0 | F40: 0 | G40: $30.00 | H40: 0 | I40: 0 | J40: $30.00 | K40: $555.00 | L40: $5,624.50 | M40: 0 | N40: $41.00 | O40: $2,872.15 | P40: 0 | Q40: $75.00 | R40: $1,397.96 | S40: =IF(R39=0,R$14,0) -> 0 | T40: $233.00 | U40: $55.28 | V40: =IF(U39=0,U$14,0) -> 0 | W40: 0 | X40: 0 | Y40: =IF(X39=0,X$14,0) -> 0
B41: 24 | C41: 0 | D41: 0 | E41: 0 | F41: 0 | G41: $30.00 | H41: 0 | I41: 0 | J41: $30.00 | K41: $555.00 | L41: $5,156.53 | M41: 0 | N41: $41.00 | O41: $2,878.34 | P41: 0 | Q41: $75.00 | R41: $1,342.80 | S41: =IF(R40=0,R$14,0) -> 0 | T41: $55.28 | U41: 0 | V41: =IF(U40=0,U$14,0) -> 0 | W41: 0 | X41: 0 | Y41: =IF(X40=0,X$14,0) -> 0
B42: 25 | C42: 0 | D42: 0 | E42: 0 | F42: 0 | G42: $30.00 | H42: 0 | I42: 0 | J42: $30.00 | K42: $788.00 | L42: $4,443.52 | M42: 0 | N42: $41.00 | O42: $2,884.62 | P42: 0 | Q42: $75.00 | R42: $1,286.82 | S42: =IF(R41=0,R$14,0) -> 0 | T42: 0 | U42: 0 | V42: =IF(U41=0,U$14,0) -> $233.00 | W42: 0 | X42: 0 | Y42: =IF(X41=0,X$14,0) -> 0
B43: 26 | C43: 0 | D43: 0 | E43: 0 | F43: 0 | G43: $30.00 | H43: 0 | I43: 0 | J43: $30.00 | K43: $788.00 | L43: $3,718.27 | M43: 0 | N43: $41.00 | O43: $2,891.02 | P43: 0 | Q43: $75.00 | R43: $1,229.99 | S43: =IF(R42=0,R$14,0) -> 0 | T43: 0 | U43: 0 | V43: =IF(U42=0,U$14,0) -> $233.00 | W43: 0 | X43: 0 | Y43: =IF(X42=0,X$14,0) -> 0
B44: 27 | C44: 0 | D44: 0 | E44: 0 | F44: 0 | G44: $30.00 | H44: 0 | I44: 0 | J44: $30.00 | K44: $788.00 | L44: $2,980.58 | M44: 0 | N44: $41.00 | O44: $2,897.52 | P44: 0 | Q44: $75.00 | R44: $1,172.32 | S44: =IF(R43=0,R$14,0) -> 0 | T44: 0 | U44: 0 | V44: =IF(U43=0,U$14,0) -> $233.00 | W44: 0 | X44: 0 | Y44: =IF(X43=0,X$14,0) -> 0
B45: 28 | C45: 0 | D45: 0 | E45: 0 | F45: 0 | G45: $30.00 | H45: 0 | I45: 0 | J45: $30.00 | K45: $788.00 | L45: $2,230.22 | M45: 0 | N45: $41.00 | O45: $2,904.13 | P45: 0 | Q45: $75.00 | R45: $1,113.78 | S45: =IF(R44=0,R$14,0) -> 0 | T45: 0 | U45: 0 | V45: =IF(U44=0,U$14,0) -> $233.00 | W45: 0 | X45: 0 | Y45: =IF(X44=0,X$14,0) -> 0
B46: 29 | C46: 0 | D46: 0 | E46: 0 | F46: 0 | G46: $30.00 | H46: 0 | I46: 0 | J46: $30.00 | K46: $788.00 | L46: $1,466.97 | M46: 0 | N46: $41.00 | O46: $2,910.85 | P46: 0 | Q46: $75.00 | R46: $1,054.36 | S46: =IF(R45=0,R$14,0) -> 0 | T46: 0 | U46: 0 | V46: =IF(U45=0,U$14,0) -> $233.00 | W46: 0 | X46: 0 | Y46: =IF(X45=0,X$14,0) -> 0
B47: 30 | C47: 0 | D47: 0 | E47: 0 | F47: 0 | G47: $30.00 | H47: 0 | I47: 0 | J47: $30.00 | K47: $788.00 | L47: $690.63 | M47: 0 | N47: $41.00 | O47: $2,917.68 | P47: 0 | Q47: $75.00 | R47: $994.05 | S47: =IF(R46=0,R$14,0) -> 0 | T47: 0 | U47: 0 | V47: =IF(U46=0,U$14,0) -> $233.00 | W47: 0 | X47: 0 | Y47: =IF(X46=0,X$14,0) -> 0
B48: 31 | C48: 0 | D48: 0 | E48: 0 | F48: 0 | G48: $30.00 | H48: 0 | I48: 0 | J48: $30.00 | K48: $690.63 | L48: 0 | M48: 0 | N48: $138.37 | O48: $2,825.63 | P48: 0 | Q48: $75.00 | R48: $932.84 | S48: =IF(R47=0,R$14,0) -> 0 | T48: 0 | U48: 0 | V48: =IF(U47=0,U$14,0) -> $233.00 | W48: 0 | X48: 0 | Y48: =IF(X47=0,X$14,0) -> 0
B49: 32 | C49: 0 | D49: 0 | E49: 0 | F49: 0 | G49: $30.00 | H49: 0 | I49: 0 | J49: $30.00 | K49: 0 | L49: 0 | M49: $150.00 | N49: $829.00 | O49: $2,029.90 | P49: 0 | Q49: $75.00 | R49: $870.70 | S49: =IF(R48=0,R$14,0) -> 0 | T49: 0 | U49: 0 | V49: =IF(U48=0,U$14,0) -> $233.00 | W49: 0 | X49: 0 | Y49: =IF(X48=0,X$14,0) -> 0
B50: 33 | C50: 0 | D50: 0 | E50: 0 | F50: 0 | G50: $30.00 | H50: 0 | I50: 0 | J50: $30.00 | K50: 0 | L50: 0 | M50: $150.00 | N50: $829.00 | O50: $1,220.92 | P50: 0 | Q50: $75.00 | R50: $807.64 | S50: =IF(R49=0,R$14,0) -> 0 | T50: 0 | U50: 0 | V50: =IF(U49=0,U$14,0) -> $233.00 | W50: 0 | X50: 0 | Y50: =IF(X49=0,X$14,0) -> 0
B51: 34 | C51: 0 | D51: 0 | E51: 0 | F51: 0 | G51: $30.00 | H51: 0 | I51: 0 | J51: $30.00 | K51: 0 | L51: 0 | M51: $150.00 | N51: $829.00 | O51: $398.45 | P51: 0 | Q51: $75.00 | R51: $743.63 | S51: =IF(R50=0,R$14,0) -> 0 | T51: 0 | U51: 0 | V51: =IF(U50=0,U$14,0) -> $233.00 | W51: 0 | X51: 0 | Y51: =IF(X50=0,X$14,0) -> 0
B52: 35 | C52: 0 | D52: 0 | E52: 0 | F52: 0 | G52: $30.00 | H52: 0 | I52: 0 | J52: $30.00 | K52: 0 | L52: 0 | M52: $150.00 | N52: $398.45 | O52: 0 | P52: 0 | Q52: $505.55 | R52: $241.65 | S52: =IF(R51=0,R$14,0) -> 0 | T52: 0 | U52: 0 | V52: =IF(U51=0,U$14,0) -> $233.00 | W52: 0 | X52: 0 | Y52: =IF(X51=0,X$14,0) -> 0
B53: 36 | C53: 0 | D53: 0 | E53: 0 | F53: 0 | G53: $30.00 | H53: 0 | I53: 0 | J53: $30.00 | K53: 0 | L53: 0 | M53: $150.00 | N53: 0 | O53: 0 | P53: $41.00 | Q53: $241.65 | R53: 0 | S53: =IF(R52=0,R$14,0) -> 0 | T53: 0 | U53: 0 | V53: =IF(U52=0,U$14,0) -> $233.00 | W53: 0 | X53: 0 | Y53: =IF(X52=0,X$14,0) -> 0
B54: 37 | C54: 0 | D54: 0 | E54: 0 | F54: 0 | G54: $30.00 | H54: 0 | I54: 0 | J54: $30.00 | K54: 0 | L54: 0 | M54: $150.00 | N54: 0 | O54: 0 | P54: $41.00 | Q54: 0 | R54: 0 | S54: =IF(R53=0,R$14,0) -> $75.00 | T54: 0 | U54: 0 | V54: =IF(U53=0,U$14,0) -> $233.00 | W54: 0 | X54: 0 | Y54: =IF(X53=0,X$14,0) -> 0
B55: 38 | C55: 0 | D55: 0 | E55: 0 | F55: 0 | G55: $30.00 | H55: 0 | I55: 0 | J55: $30.00 | K55: 0 | L55: 0 | M55: $150.00 | N55: 0 | O55: 0 | P55: $41.00 | Q55: 0 | R55: 0 | S55: =IF(R54=0,R$14,0) -> $75.00 | T55: 0 | U55: 0 | V55: =IF(U54=0,U$14,0) -> $233.00 | W55: 0 | X55: 0 | Y55: =IF(X54=0,X$14,0) -> 0
B56: 39 | C56: 0 | D56: 0 | E56: 0 | F56: 0 | G56: $30.00 | H56: 0 | I56: 0 | J56: $30.00 | K56: 0 | L56: 0 | M56: $150.00 | N56: 0 | O56: 0 | P56: $41.00 | Q56: 0 | R56: 0 | S56: =IF(R55=0,R$14,0) -> $75.00 | T56: 0 | U56: 0 | V56: =IF(U55=0,U$14,0) -> $233.00 | W56: 0 | X56: 0 | Y56: =IF(X55=0,X$14,0) -> 0
B57: 40 | C57: 0 | D57: 0 | E57: 0 | F57: 0 | G57: $30.00 | H57: 0 | I57: 0 | J57: $30.00 | K57: 0 | L57: 0 | M57: $150.00 | N57: 0 | O57: 0 | P57: $41.00 | Q57: 0 | R57: 0 | S57: =IF(R56=0,R$14,0) -> $75.00 | T57: 0 | U57: 0 | V57: =IF(U56=0,U$14,0) -> $233.00 | W57: 0 | X57: 0 | Y57: =IF(X56=0,X$14,0) -> 0
B58: 41 | C58: 0 | D58: 0 | E58: 0 | F58: 0 | G58: $30.00 | H58: 0 | I58: 0 | J58: $30.00 | K58: 0 | L58: 0 | M58: $150.00 | N58: 0 | O58: 0 | P58: $41.00 | Q58: 0 | R58: 0 | S58: =IF(R57=0,R$14,0) -> $75.00 | T58: 0 | U58: 0 | V58: =IF(U57=0,U$14,0) -> $233.00 | W58: 0 | X58: 0 | Y58: =IF(X57=0,X$14,0) -> 0
B59: 42 | C59: 0 | D59: 0 | E59: 0 | F59: 0 | G59: $30.00 | H59: 0 | I59: 0 | J59: $30.00 | K59: 0 | L59: 0 | M59: $150.00 | N59: 0 | O59: 0 | P59: $41.00 | Q59: 0 | R59: 0 | S59: =IF(R58=0,R$14,0) -> $75.00 | T59: 0 | U59: 0 | V59: =IF(U58=0,U$14,0) -> $233.00 | W59: 0 | X59: 0 | Y59: =IF(X58=0,X$14,0) -> 0
B60: 43 | C60: 0 | D60: 0 | E60: 0 | F60: 0 | G60: $30.00 | H60: 0 | I60: 0 | J60: $30.00 | K60: 0 | L60: 0 | M60: $150.00 | N60: 0 | O60: 0 | P60: $41.00 | Q60: 0 | R60: 0 | S60: =IF(R59=0,R$14,0) -> $75.00 | T60: 0 | U60: 0 | V60: =IF(U59=0,U$14,0) -> $233.00 | W60: 0 | X60: 0 | Y60: =IF(X59=0,X$14,0) -> 0
B61: 44 | C61: 0 | D61: 0 | E61: 0 | F61: 0 | G61: $30.00 | H61: 0 | I61: 0 | J61: $30.00 | K61: 0 | L61: 0 | M61: $150.00 | N61: 0 | O61: 0 | P61: $41.00 | Q61: 0 | R61: 0 | S61: =IF(R60=0,R$14,0) -> $75.00 | T61: 0 | U61: 0 | V61: =IF(U60=0,U$14,0) -> $233.00 | W61: 0 | X61: 0 | Y61: =IF(X60=0,X$14,0) -> 0
B62: 45 | C62: 0 | D62: 0 | E62: 0 | F62: 0 | G62: $30.00 | H62: 0 | I62: 0 | J62: $30.00 | K62: 0 | L62: 0 | M62: $150.00 | N62: 0 | O62: 0 | P62: $41.00 | Q62: 0 | R62: 0 | S62: =IF(R61=0,R$14,0) -> $75.00 | T62: 0 | U62: 0 | V62: =IF(U61=0,U$14,0) -> $233.00 | W62: 0 | X62: 0 | Y62: =IF(X61=0,X$14,0) -> 0
B63: 46 | C63: 0 | D63: 0 | E63: 0 | F63: 0 | G63: $30.00 | H63: 0 | I63: 0 | J63: $30.00 | K63: 0 | L63: 0 | M63: $150.00 | N63: 0 | O63: 0 | P63: $41.00 | Q63: 0 | R63: 0 | S63: =IF(R62=0,R$14,0) -> $75.00 | T63: 0 | U63: 0 | V63: =IF(U62=0,U$14,0) -> $233.00 | W63: 0 | X63: 0 | Y63: =IF(X62=0,X$14,0) -> 0
B64: 47 | C64: 0 | D64: 0 | E64: 0 | F64: 0 | G64: $30.00 | H64: 0 | I64: 0 | J64: $30.00 | K64: 0 | L64: 0 | M64: $150.00 | N64: 0 | O64: 0 | P64: $41.00 | Q64: 0 | R64: 0 | S64: =IF(R63=0,R$14,0) -> $75.00 | T64: 0 | U64: 0 | V64: =IF(U63=0,U$14,0) -> $233.00 | W64: 0 | X64: 0 | Y64: =IF(X63=0,X$14,0) -> 0
B65: 48 | C65: 0 | D65: 0 | E65: 0 | F65: 0 | G65: $30.00 | H65: 0 | I65: 0 | J65: $30.00 | K65: 0 | L65: 0 | M65: $150.00 | N65: 0 | O65: 0 | P65: $41.00 | Q65: 0 | R65: 0 | S65: =IF(R64=0,R$14,0) -> $75.00 | T65: 0 | U65: 0 | V65: =IF(U64=0,U$14,0) -> $233.00 | W65: 0 | X65: 0 | Y65: =IF(X64=0,X$14,0) -> 0
B66: 49 | C66: 0 | D66: 0 | E66: 0 | F66: 0 | G66: $30.00 | H66: 0 | I66: 0 | J66: $30.00 | K66: 0 | L66: 0 | M66: $150.00 | N66: 0 | O66: 0 | P66: $41.00 | Q66: 0 | R66: 0 | S66: =IF(R65=0,R$14,0) -> $75.00 | T66: 0 | U66: 0 | V66: =IF(U65=0,U$14,0) -> $233.00 | W66: 0 | X66: 0 | Y66: =IF(X65=0,X$14,0) -> 0
B67: 50 | C67: 0 | D67: 0 | E67: 0 | F67: 0 | G67: $30.00 | H67: 0 | I67: 0 | J67: $30.00 | K67: 0 | L67: 0 | M67: $150.00 | N67: 0 | O67: 0 | P67: $41.00 | Q67: 0 | R67: 0 | S67: =IF(R66=0,R$14,0) -> $75.00 | T67: 0 | U67: 0 | V67: =IF(U66=0,U$14,0) -> $233.00 | W67: 0 | X67: 0 | Y67: =IF(X66=0,X$14,0) -> 0
B68: 51 | C68: 0 | D68: 0 | E68: 0 | F68: 0 | G68: $30.00 | H68: 0 | I68: 0 | J68: $30.00 | K68: 0 | L68: 0 | M68: $150.00 | N68: 0 | O68: 0 | P68: $41.00 | Q68: 0 | R68: 0 | S68: =IF(R67=0,R$14,0) -> $75.00 | T68: 0 | U68: 0 | V68: =IF(U67=0,U$14,0) -> $233.00 | W68: 0 | X68: 0 | Y68: =IF(X67=0,X$14,0) -> 0
B69: 52 | C69: 0 | D69: 0 | E69: 0 | F69: 0 | G69: $30.00 | H69: 0 | I69: 0 | J69: $30.00 | K69: 0 | L69: 0 | M69: $150.00 | N69: 0 | O69: 0 | P69: $41.00 | Q69: 0 | R69: 0 | S69: =IF(R68=0,R$14,0) -> $75.00 | T69: 0 | U69: 0 | V69: =IF(U68=0,U$14,0) -> $233.00 | W69: 0 | X69: 0 | Y69: =IF(X68=0,X$14,0) -> 0
B70: 53 | C70: 0 | D70: 0 | E70: 0 | F70: 0 | G70: $30.00 | H70: 0 | I70: 0 | J70: $30.00 | K70: 0 | L70: 0 | M70: $150.00 | N70: 0 | O70: 0 | P70: $41.00 | Q70: 0 | R70: 0 | S70: =IF(R69=0,R$14,0) -> $75.00 | T70: 0 | U70: 0 | V70: =IF(U69=0,U$14,0) -> $233.00 | W70: 0 | X70: 0 | Y70: =IF(X69=0,X$14,0) -> 0
B71: 54 | C71: 0 | D71: 0 | E71: 0 | F71: 0 | G71: $30.00 | H71: 0 | I71: 0 | J71: $30.00 | K71: 0 | L71: 0 | M71: $150.00 | N71: 0 | O71: 0 | P71: $41.00 | Q71: 0 | R71: 0 | S71: =IF(R70=0,R$14,0) -> $75.00 | T71: 0 | U71: 0 | V71: =IF(U70=0,U$14,0) -> $233.00 | W71: 0 | X71: 0 | Y71: =IF(X70=0,X$14,0) -> 0
B72: 55 | C72: 0 | D72: 0 | E72: 0 | F72: 0 | G72: $30.00 | H72: 0 | I72: 0 | J72: $30.00 | K72: 0 | L72: 0 | M72: $150.00 | N72: 0 | O72: 0 | P72: $41.00 | Q72: 0 | R72: 0 | S72: =IF(R71=0,R$14,0) -> $75.00 | T72: 0 | U72: 0 | V72: =IF(U71=0,U$14,0) -> $233.00 | W72: 0 | X72: 0 | Y72: =IF(X71=0,X$14,0) -> 0
B73: 56 | C73: 0 | D73: 0 | E73: 0 | F73: 0 | G73: $30.00 | H73: 0 | I73: 0 | J73: $30.00 | K73: 0 | L73: 0 | M73: $150.00 | N73: 0 | O73: 0 | P73: $41.00 | Q73: 0 | R73: 0 | S73: =IF(R72=0,R$14,0) -> $75.00 | T73: 0 | U73: 0 | V73: =IF(U72=0,U$14,0) -> $233.00 | W73: 0 | X73: 0 | Y73: =IF(X72=0,X$14,0) -> 0
B74: 57 | C74: 0 | D74: 0 | E74: 0 | F74: 0 | G74: $30.00 | H74: 0 | I74: 0 | J74: $30.00 | K74: 0 | L74: 0 | M74: $150.00 | N74: 0 | O74: 0 | P74: $41.00 | Q74: 0 | R74: 0 | S74: =IF(R73=0,R$14,0) -> $75.00 | T74: 0 | U74: 0 | V74: =IF(U73=0,U$14,0) -> $233.00 | W74: 0 | X74: 0 | Y74: =IF(X73=0,X$14,0) -> 0
B75: 58 | C75: 0 | D75: 0 | E75: 0 | F75: 0 | G75: $30.00 | H75: 0 | I75: 0 | J75: $30.00 | K75: 0 | L75: 0 | M75: $150.00 | N75: 0 | O75: 0 | P75: $41.00 | Q75: 0 | R75: 0 | S75: =IF(R74=0,R$14,0) -> $75.00 | T75: 0 | U75: 0 | V75: =IF(U74=0,U$14,0) -> $233.00 | W75: 0 | X75: 0 | Y75: =IF(X74=0,X$14,0) -> 0
B76: 59 | C76: 0 | D76: 0 | E76: 0 | F76: 0 | G76: $30.00 | H76: 0 | I76: 0 | J76: $30.00 | K76: 0 | L76: 0 | M76: $150.00 | N76: 0 | O76: 0 | P76: $41.00 | Q76: 0 | R76: 0 | S76: =IF(R75=0,R$14,0) -> $75.00 | T76: 0 | U76: 0 | V76: =IF(U75=0,U$14,0) -> $233.00 | W76: 0 | X76: 0 | Y76: =IF(X75=0,X$14,0) -> 0
B77: 60 | C77: 0 | D77: 0 | E77: 0 | F77: 0 | G77: $30.00 | H77: 0 | I77: 0 | J77: $30.00 | K77: 0 | L77: 0 | M77: $150.00 | N77: 0 | O77: 0 | P77: $41.00 | Q77: 0 | R77: 0 | S77: =IF(R76=0,R$14,0) -> $75.00 | T77: 0 | U77: 0 | V77: =IF(U76=0,U$14,0) -> $233.00 | W77: 0 | X77: 0 | Y77: =IF(X76=0,X$14,0) -> 0
B78: 61 | C78: 0 | D78: 0 | E78: 0 | F78: 0 | G78: $30.00 | H78: 0 | I78: 0 | J78: $30.00 | K78: 0 | L78: 0 | M78: $150.00 | N78: 0 | O78: 0 | P78: $41.00 | Q78: 0 | R78: 0 | S78: =IF(R77=0,R$14,0) -> $75.00 | T78: 0 | U78: 0 | V78: =IF(U77=0,U$14,0) -> $233.00 | W78: 0 | X78: 0 | Y78: =IF(X77=0,X$14,0) -> 0
B79: 62 | C79: 0 | D79: 0 | E79: 0 | F79: 0 | G79: $30.00 | H79: 0 | I79: 0 | J79: $30.00 | K79: 0 | L79: 0 | M79: $150.00 | N79: 0 | O79: 0 | P79: $41.00 | Q79: 0 | R79: 0 | S79: =IF(R78=0,R$14,0) -> $75.00 | T79: 0 | U79: 0 | V79: =IF(U78=0,U$14,0) -> $233.00 | W79: 0 | X79: 0 | Y79: =IF(X78=0,X$14,0) -> 0
B80: 63 | C80: 0 | D80: 0 | E80: 0 | F80: 0 | G80: $30.00 | H80: 0 | I80: 0 | J80: $30.00 | K80: 0 | L80: 0 | M80: $150.00 | N80: 0 | O80: 0 | P80: $41.00 | Q80: 0 | R80: 0 | S80: =IF(R79=0,R$14,0) -> $75.00 | T80: 0 | U80: 0 | V80: =IF(U79=0,U$14,0) -> $233.00 | W80: 0 | X80: 0 | Y80: =IF(X79=0,X$14,0) -> 0
B81: 64 | C81: 0 | D81: 0 | E81: 0 | F81: 0 | G81: $30.00 | H81: 0 | I81: 0 | J81: $30.00 | K81: 0 | L81: 0 | M81: $150.00 | N81: 0 | O81: 0 | P81: $41.00 | Q81: 0 | R81: 0 | S81: =IF(R80=0,R$14,0) -> $75.00 | T81: 0 | U81: 0 | V81: =IF(U80=0,U$14,0) -> $233.00 | W81: 0 | X81: 0 | Y81: =IF(X80=0,X$14,0) -> 0
B82: 65 | C82: 0 | D82: 0 | E82: 0 | F82: 0 | G82: $30.00 | H82: 0 | I82: 0 | J82: $30.00 | K82: 0 | L82: 0 | M82: $150.00 | N82: 0 | O82: 0 | P82: =IF(O81=0,O$14,0) -> $41.00 | Q82: 0 | R82: 0 | S82: =IF(R81=0,R$14,0) -> $75.00 | T82: 0 | U82: 0 | V82: =IF(U81=0,U$14,0) -> $233.00 | W82: 0 | X82: 0 | Y82: =IF(X81=0,X$14,0) -> 0
B83: 66 | C83: 0 | D83: 0 | E83: 0 | F83: =IF((F82-E83)<=0.0001,0,(F82-E83)*(1+(F$15/12))) -> 0 | G83: $30.00 | H83: 0 | I83: 0 | J83: $30.00 | K83: 0 | L83: 0 | M83: $150.00 | N83: 0 | O83: 0 | P83: $41.00 | Q83: 0 | R83: 0 | S83: =IF(R82=0,R$14,0) -> $75.00 | T83: 0 | U83: 0 | V83: =IF(U82=0,U$14,0) -> $233.00 | W83: 0 | X83: 0 | Y83: =IF(X82=0,X$14,0) -> 0
B84: 67 | C84: =IF((D83-$L$3-$D$14-SUM(G84,J84,M84,P84,S84,V84,Y84))<=0,($L$3+(D83-$L$3)),($L$3+$D$14+SUM(G84,J84,M84,P84,S84,V84,Y84))) -> 0 | D84: 0 | E84: =IF(AND(((F83-$L$3+C84-F$14-D$14-SUM(J84,M84,P84,S84,V84,Y84))<=0),D84=0),F83,IF(D84=0,$L$3-C84+F$14+D$14+SUM(J84,M84,P84,S84,V84,Y84),F$14)) -> 0 | F84: 0 | G84: $30.00 | H84: =IF(AND(((I83-$L$3+E84+C84-I$14-F$14-D$14-SUM(M84,P84,S84,V84,Y84))<=0),F84+D84=0),I83,IF(I$14>=I83,I83,IF(AND(F84=0,D84=0),$L$3-E84-C84+I$14+F$14+D$14+SUM(M84,P84,S84,V84,Y84),I$14))) -> 0 | I84: =IF((I83-H84)<=0.0001,0,(I83-H84)*(1+(I$15/12))) -> 0 | J84: $30.00 | K84: =IF(AND(((L83-$L$3+H84+E84+C84-L$14-I$14-F$14-D$14-SUM(P84,S84,V84,Y84))<=0),I84+F84+D84=0),L83,IF(L$14>=L83,L83, IF(AND(I84=0,F84=0,D84=0),$L$3-H84-E84-C84+L$14+I$14+F$14+D$14+SUM(P84,S84,V84,Y84),L$14))) -> 0 | L84: =IF((L83-K84)<=0.0001,0,(L83-K84)*(1+(L$15/12))) -> 0 | M84: $150.00 | N84: =IF(AND(((O83-$L$3+K84+H84+E84+C84-O$14-L$14-I$14-F$14-D$14-SUM(S84,V84,Y84))<=0),L84+I84+F84+D84=0),O83,IF(O$14>=O83,O83,IF(AND(L84=0,I84=0,F84=0,D84=0),$L$3-K84-H84-E84-C84+O$14+L$14+I$14+F$14+D$14+SUM(S84,V84,Y84),O$14))) -> 0 | O84: =IF((O83-N84)<=0.0001,0,(O83-N84)*(1+(O$15/12))) -> 0 | P84: $41.00 | Q84: =IF(AND(((R83-$L$3+N84+K84+H84+E84+C84-R$14-O$14-L$14-I$14-F$14-D$14-SUM(V84,Y84))<=0),O84+L84+I84+F84+D84=0),R83,IF(R$14>=R83,R83,IF(AND(O84=0,L84=0,I84=0,F84=0),$L$3-N84-K84-H84-E84-C84+R$14+O$14+L$14+I$14+F$14+D$14+SUM(V84,Y84),R$14))) -> 0 | R84: 0 | S84: =IF(R83=0,R$14,0) -> $75.00 | T84: =IF(AND(((U83-$L$3+Q84+N84+K84+H84+E84+C84-U$14-R$14-O$14-L$14-I$14-F$14-D$14-SUM(Y84))<=0),R84+O84+L84+I84+F84+D84=0),U83,IF(U$14>=U83,U83,IF(AND(R84=0,O84=0,L84=0,I84=0,F84=0,D84=0),$L$3-Q84-N84-K84-H84-E84-C84+U$14+R$14+O$14+L$14+I$14+F$14+D$14+SUM(Y84),U$14))) -> 0 | U84: =IF((U83-T84)<=0.0001,0,(U83-T84)*(1+(U$15/12))) -> 0 | V84: =IF(U83=0,U$14,0) -> $233.00 | W84: =IF(AND(((X83-$L$3+T84+Q84+N84+K84+H84+E84+C84-X$14-U$14-R$14-O$14-L$14-I$14-F$14-D$14)<=0),U84+R84+O84+L84+I84+F84+D84=0),X83,IF(X$14>=X83,X83,IF(AND(U84=0,R84=0,O84=0,L84=0,I84=0,F84=0,D84=0),$L$3-T84-Q84-N84-K84-H84-E84-C84+X$14+U$14+R$14+O$14+L$14+I$14+F$14+D$14,X$14))) -> 0 | X84: =IF((X83-W84)<=0.0001,0,(X83-W84)*(1+(X$15/12))) -> 0 | Y84: =IF(X83=0,X$14,0) -> 0
B85: 68 | C85: 0 | D85: 0 | E85: 0 | F85: 0 | G85: =IF(F84=0,F$14,0) -> $30.00 | H85: 0 | I85: 0 | J85: =IF(I84=0,I$14,0) -> $30.00 | K85: 0 | L85: 0 | M85: =IF(L84=0,L$14,0) -> $150.00 | N85: 0 | O85: 0 | P85: $41.00 | Q85: 0 | R85: =IF((R84-Q85)<=0.0001,0,(R84-Q85)*(1+(R$15/12))) -> 0 | S85: =IF(R84=0,R$14,0) -> $75.00 | T85: 0 | U85: 0 | V85: =IF(U84=0,U$14,0) -> $233.00 | W85: 0 | X85: 0 | Y85: =IF(X84=0,X$14,0) -> 0
B86: 69 | C86: 0 | D86: =IF((D85-C86)<=0.0001,0,(D85-C86)*(1+(D$15/12))) -> 0 | E86: 0 | F86: 0 | G86: $30.00 | H86: 0 | I86: 0 | J86: $30.00 | K86: 0 | L86: 0 | M86: $150.00 | N86: 0 | O86: 0 | P86: $41.00 | Q86: 0 | R86: 0 | S86: =IF(R85=0,R$14,0) -> $75.00 | T86: 0 | U86: 0 | V86: =IF(U85=0,U$14,0) -> $233.00 | W86: 0 | X86: 0 | Y86: =IF(X85=0,X$14,0) -> 0
B87: 70 | C87: 0 | D87: 0 | E87: 0 | F87: 0 | G87: $30.00 | H87: 0 | I87: 0 | J87: $30.00 | K87: 0 | L87: 0 | M87: $150.00 | N87: 0 | O87: 0 | P87: $41.00 | Q87: 0 | R87: 0 | S87: =IF(R86=0,R$14,0) -> $75.00 | T87: 0 | U87: 0 | V87: =IF(U86=0,U$14,0) -> $233.00 | W87: 0 | X87: 0 | Y87: =IF(X86=0,X$14,0) -> 0
B88: 71 | C88: 0 | D88: 0 | E88: 0 | F88: 0 | G88: $30.00 | H88: 0 | I88: 0 | J88: $30.00 | K88: 0 | L88: 0 | M88: $150.00 | N88: 0 | O88: 0 | P88: $41.00 | Q88: 0 | R88: 0 | S88: =IF(R87=0,R$14,0) -> $75.00 | T88: 0 | U88: 0 | V88: =IF(U87=0,U$14,0) -> $233.00 | W88: 0 | X88: 0 | Y88: =IF(X87=0,X$14,0) -> 0
B89: 72 | C89: 0 | D89: 0 | E89: 0 | F89: 0 | G89: $30.00 | H89: 0 | I89: 0 | J89: $30.00 | K89: 0 | L89: 0 | M89: $150.00 | N89: 0 | O89: 0 | P89: $41.00 | Q89: 0 | R89: 0 | S89: =IF(R88=0,R$14,0) -> $75.00 | T89: 0 | U89: 0 | V89: =IF(U88=0,U$14,0) -> $233.00 | W89: 0 | X89: 0 | Y89: =IF(X88=0,X$14,0) -> 0
B90: 73 | C90: 0 | D90: 0 | E90: 0 | F90: 0 | G90: $30.00 | H90: 0 | I90: 0 | J90: $30.00 | K90: 0 | L90: 0 | M90: $150.00 | N90: 0 | O90: 0 | P90: $41.00 | Q90: 0 | R90: 0 | S90: =IF(R89=0,R$14,0) -> $75.00 | T90: 0 | U90: 0 | V90: =IF(U89=0,U$14,0) -> $233.00 | W90: 0 | X90: 0 | Y90: =IF(X89=0,X$14,0) -> 0
B91: 74 | C91: 0 | D91: 0 | E91: 0 | F91: 0 | G91: $30.00 | H91: 0 | I91: 0 | J91: $30.00 | K91: 0 | L91: 0 | M91: $150.00 | N91: 0 | O91: 0 | P91: $41.00 | Q91: 0 | R91: 0 | S91: =IF(R90=0,R$14,0) -> $75.00 | T91: 0 | U91: 0 | V91: =IF(U90=0,U$14,0) -> $233.00 | W91: 0 | X91: 0 | Y91: =IF(X90=0,X$14,0) -> 0
B92: 75 | C92: 0 | D92: 0 | E92: 0 | F92: 0 | G92: $30.00 | H92: 0 | I92: 0 | J92: $30.00 | K92: 0 | L92: 0 | M92: $150.00 | N92: 0 | O92: 0 | P92: $41.00 | Q92: 0 | R92: 0 | S92: =IF(R91=0,R$14,0) -> $75.00 | T92: 0 | U92: 0 | V92: =IF(U91=0,U$14,0) -> $233.00 | W92: 0 | X92: 0 | Y92: =IF(X91=0,X$14,0) -> 0
B93: 76 | C93: 0 | D93: 0 | E93: 0 | F93: 0 | G93: $30.00 | H93: 0 | I93: 0 | J93: $30.00 | K93: 0 | L93: 0 | M93: $150.00 | N93: 0 | O93: 0 | P93: $41.00 | Q93: 0 | R93: 0 | S93: =IF(R92=0,R$14,0) -> $75.00 | T93: 0 | U93: 0 | V93: =IF(U92=0,U$14,0) -> $233.00 | W93: 0 | X93: 0 | Y93: =IF(X92=0,X$14,0) -> 0
B94: 77 | C94: 0 | D94: 0 | E94: 0 | F94: 0 | G94: $30.00 | H94: 0 | I94: 0 | J94: $30.00 | K94: 0 | L94: 0 | M94: $150.00 | N94: 0 | O94: 0 | P94: $41.00 | Q94: 0 | R94: 0 | S94: =IF(R93=0,R$14,0) -> $75.00 | T94: 0 | U94: 0 | V94: =IF(U93=0,U$14,0) -> $233.00 | W94: 0 | X94: 0 | Y94: =IF(X93=0,X$14,0) -> 0
B95: 78 | C95: 0 | D95: 0 | E95: 0 | F95: 0 | G95: $30.00 | H95: 0 | I95: 0 | J95: $30.00 | K95: 0 | L95: 0 | M95: $150.00 | N95: 0 | O95: 0 | P95: $41.00 | Q95: 0 | R95: 0 | S95: =IF(R94=0,R$14,0) -> $75.00 | T95: 0 | U95: 0 | V95: =IF(U94=0,U$14,0) -> $233.00 | W95: 0 | X95: 0 | Y95: =IF(X94=0,X$14,0) -> 0
B96: 79 | C96: 0 | D96: 0 | E96: 0 | F96: 0 | G96: $30.00 | H96: 0 | I96: 0 | J96: $30.00 | K96: 0 | L96: 0 | M96: $150.00 | N96: 0 | O96: 0 | P96: $41.00 | Q96: 0 | R96: 0 | S96: =IF(R95=0,R$14,0) -> $75.00 | T96: 0 | U96: 0 | V96: =IF(U95=0,U$14,0) -> $233.00 | W96: 0 | X96: 0 | Y96: =IF(X95=0,X$14,0) -> 0
B97: 80 | C97: 0 | D97: 0 | E97: 0 | F97: 0 | G97: $30.00 | H97: 0 | I97: 0 | J97: $30.00 | K97: 0 | L97: 0 | M97: $150.00 | N97: 0 | O97: 0 | P97: $41.00 | Q97: 0 | R97: 0 | S97: =IF(R96=0,R$14,0) -> $75.00 | T97: 0 | U97: 0 | V97: =IF(U96=0,U$14,0) -> $233.00 | W97: 0 | X97: 0 | Y97: =IF(X96=0,X$14,0) -> 0
B98: 81 | C98: 0 | D98: 0 | E98: 0 | F98: 0 | G98: $30.00 | H98: 0 | I98: 0 | J98: $30.00 | K98: 0 | L98: 0 | M98: $150.00 | N98: 0 | O98: 0 | P98: $41.00 | Q98: 0 | R98: 0 | S98: =IF(R97=0,R$14,0) -> $75.00 | T98: 0 | U98: 0 | V98: =IF(U97=0,U$14,0) -> $233.00 | W98: 0 | X98: 0 | Y98: =IF(X97=0,X$14,0) -> 0
B99: 82 | C99: 0 | D99: 0 | E99: 0 | F99: 0 | G99: $30.00 | H99: 0 | I99: 0 | J99: $30.00 | K99: 0 | L99: 0 | M99: $150.00 | N99: 0 | O99: 0 | P99: $41.00 | Q99: 0 | R99: 0 | S99: =IF(R98=0,R$14,0) -> $75.00 | T99: 0 | U99: 0 | V99: =IF(U98=0,U$14,0) -> $233.00 | W99: 0 | X99: 0 | Y99: =IF(X98=0,X$14,0) -> 0
B100: 83 | C100: 0 | D100: 0 | E100: 0 | F100: 0 | G100: $30.00 | H100: 0 | I100: 0 | J100: $30.00 | K100: 0 | L100: 0 | M100: $150.00 | N100: 0 | O100: 0 | P100: $41.00 | Q100: 0 | R100: 0 | S100: =IF(R99=0,R$14,0) -> $75.00 | T100: 0 | U100: 0 | V100: =IF(U99=0,U$14,0) -> $233.00 | W100: 0 | X100: 0 | Y100: =IF(X99=0,X$14,0) -> 0
B101: 84 | C101: 0 | D101: 0 | E101: 0 | F101: 0 | G101: $30.00 | H101: 0 | I101: 0 | J101: $30.00 | K101: 0 | L101: 0 | M101: $150.00 | N101: 0 | O101: 0 | P101: $41.00 | Q101: 0 | R101: 0 | S101: =IF(R100=0,R$14,0) -> $75.00 | T101: 0 | U101: 0 | V101: =IF(U100=0,U$14,0) -> $233.00 | W101: 0 | X101: 0 | Y101: =IF(X100=0,X$14,0) -> 0
B102: 85 | C102: 0 | D102: 0 | E102: 0 | F102: 0 | G102: $30.00 | H102: 0 | I102: 0 | J102: $30.00 | K102: 0 | L102: 0 | M102: $150.00 | N102: 0 | O102: 0 | P102: $41.00 | Q102: 0 | R102: 0 | S102: =IF(R101=0,R$14,0) -> $75.00 | T102: 0 | U102: 0 | V102: =IF(U101=0,U$14,0) -> $233.00 | W102: 0 | X102: 0 | Y102: =IF(X101=0,X$14,0) -> 0
B103: 86 | C103: 0 | D103: 0 | E103: 0 | F103: 0 | G103: $30.00 | H103: 0 | I103: 0 | J103: $30.00 | K103: 0 | L103: 0 | M103: $150.00 | N103: 0 | O103: 0 | P103: $41.00 | Q103: 0 | R103: 0 | S103: =IF(R102=0,R$14,0) -> $75.00 | T103: 0 | U103: 0 | V103: =IF(U102=0,U$14,0) -> $233.00 | W103: 0 | X103: 0 | Y103: =IF(X102=0,X$14,0) -> 0
B104: 87 | C104: 0 | D104: 0 | E104: 0 | F104: 0 | G104: $30.00 | H104: 0 | I104: 0 | J104: $30.00 | K104: 0 | L104: 0 | M104: $150.00 | N104: 0 | O104: 0 | P104: $41.00 | Q104: 0 | R104: 0 | S104: =IF(R103=0,R$14,0) -> $75.00 | T104: 0 | U104: 0 | V104: =IF(U103=0,U$14,0) -> $233.00 | W104: 0 | X104: 0 | Y104: =IF(X103=0,X$14,0) -> 0
B105: 88 | C105: 0 | D105: 0 | E105: 0 | F105: 0 | G105: $30.00 | H105: 0 | I105: 0 | J105: $30.00 | K105: 0 | L105: 0 | M105: $150.00 | N105: 0 | O105: 0 | P105: $41.00 | Q105: 0 | R105: 0 | S105: =IF(R104=0,R$14,0) -> $75.00 | T105: 0 | U105: 0 | V105: =IF(U104=0,U$14,0) -> $233.00 | W105: 0 | X105: 0 | Y105: =IF(X104=0,X$14,0) -> 0
B106: 89 | C106: 0 | D106: 0 | E106: 0 | F106: 0 | G106: $30.00 | H106: 0 | I106: 0 | J106: $30.00 | K106: 0 | L106: 0 | M106: $150.00 | N106: 0 | O106: 0 | P106: $41.00 | Q106: 0 | R106: 0 | S106: =IF(R105=0,R$14,0) -> $75.00 | T106: 0 | U106: 0 | V106: =IF(U105=0,U$14,0) -> $233.00 | W106: 0 | X106: 0 | Y106: =IF(X105=0,X$14,0) -> 0
B107: 90 | C107: 0 | D107: 0 | E107: 0 | F107: 0 | G107: $30.00 | H107: 0 | I107: 0 | J107: $30.00 | K107: 0 | L107: 0 | M107: $150.00 | N107: 0 | O107: 0 | P107: $41.00 | Q107: 0 | R107: 0 | S107: =IF(R106=0,R$14,0) -> $75.00 | T107: 0 | U107: 0 | V107: =IF(U106=0,U$14,0) -> $233.00 | W107: 0 | X107: 0 | Y107: =IF(X106=0,X$14,0) -> 0
B108: 91 | C108: 0 | D108: 0 | E108: 0 | F108: 0 | G108: $30.00 | H108: 0 | I108: 0 | J108: $30.00 | K108: 0 | L108: 0 | M108: $150.00 | N108: 0 | O108: 0 | P108: $41.00 | Q108: 0 | R108: 0 | S108: =IF(R107=0,R$14,0) -> $75.00 | T108: 0 | U108: 0 | V108: =IF(U107=0,U$14,0) -> $233.00 | W108: 0 | X108: 0 | Y108: =IF(X107=0,X$14,0) -> 0
B109: 92 | C109: 0 | D109: 0 | E109: 0 | F109: 0 | G109: $30.00 | H109: 0 | I109: 0 | J109: $30.00 | K109: 0 | L109: 0 | M109: $150.00 | N109: 0 | O109: 0 | P109: $41.00 | Q109: 0 | R109: 0 | S109: =IF(R108=0,R$14,0) -> $75.00 | T109: 0 | U109: 0 | V109: =IF(U108=0,U$14,0) -> $233.00 | W109: 0 | X109: 0 | Y109: =IF(X108=0,X$14,0) -> 0
B110: 93 | C110: 0 | D110: 0 | E110: 0 | F110: 0 | G110: $30.00 | H110: 0 | I110: 0 | J110: $30.00 | K110: 0 | L110: 0 | M110: $150.00 | N110: 0 | O110: 0 | P110: $41.00 | Q110: 0 | R110: 0 | S110: =IF(R109=0,R$14,0) -> $75.00 | T110: 0 | U110: 0 | V110: =IF(U109=0,U$14,0) -> $233.00 | W110: 0 | X110: 0 | Y110: =IF(X109=0,X$14,0) -> 0
B111: 94 | C111: 0 | D111: 0 | E111: 0 | F111: 0 | G111: $30.00 | H111: 0 | I111: 0 | J111: $30.00 | K111: 0 | L111: 0 | M111: $150.00 | N111: 0 | O111: 0 | P111: $41.00 | Q111: 0 | R111: 0 | S111: =IF(R110=0,R$14,0) -> $75.00 | T111: 0 | U111: 0 | V111: =IF(U110=0,U$14,0) -> $233.00 | W111: 0 | X111: 0 | Y111: =IF(X110=0,X$14,0) -> 0
B112: 95 | C112: 0 | D112: 0 | E112: 0 | F112: 0 | G112: $30.00 | H112: 0 | I112: 0 | J112: $30.00 | K112: 0 | L112: 0 | M112: $150.00 | N112: 0 | O112: 0 | P112: $41.00 | Q112: 0 | R112: 0 | S112: =IF(R111=0,R$14,0) -> $75.00 | T112: 0 | U112: 0 | V112: =IF(U111=0,U$14,0) -> $233.00 | W112: 0 | X112: 0 | Y112: =IF(X111=0,X$14,0) -> 0
B113: 96 | C113: 0 | D113: 0 | E113: 0 | F113: 0 | G113: $30.00 | H113: 0 | I113: 0 | J113: $30.00 | K113: 0 | L113: 0 | M113: $150.00 | N113: 0 | O113: 0 | P113: $41.00 | Q113: 0 | R113: 0 | S113: =IF(R112=0,R$14,0) -> $75.00 | T113: 0 | U113: 0 | V113: =IF(U112=0,U$14,0) -> $233.00 | W113: 0 | X113: 0 | Y113: =IF(X112=0,X$14,0) -> 0
B114: 97 | C114: 0 | D114: 0 | E114: 0 | F114: 0 | G114: $30.00 | H114: 0 | I114: 0 | J114: $30.00 | K114: 0 | L114: 0 | M114: $150.00 | N114: 0 | O114: 0 | P114: $41.00 | Q114: 0 | R114: 0 | S114: =IF(R113=0,R$14,0) -> $75.00 | T114: 0 | U114: 0 | V114: =IF(U113=0,U$14,0) -> $233.00 | W114: 0 | X114: 0 | Y114: =IF(X113=0,X$14,0) -> 0
B115: 98 | C115: 0 | D115: 0 | E115: 0 | F115: 0 | G115: $30.00 | H115: 0 | I115: 0 | J115: $30.00 | K115: 0 | L115: 0 | M115: $150.00 | N115: 0 | O115: 0 | P115: $41.00 | Q115: 0 | R115: 0 | S115: =IF(R114=0,R$14,0) -> $75.00 | T115: 0 | U115: 0 | V115: =IF(U114=0,U$14,0) -> $233.00 | W115: 0 | X115: 0 | Y115: =IF(X114=0,X$14,0) -> 0
B116: 99 | C116: 0 | D116: 0 | E116: 0 | F116: 0 | G116: $30.00 | H116: 0 | I116: 0 | J116: $30.00 | K116: 0 | L116: 0 | M116: $150.00 | N116: 0 | O116: 0 | P116: $41.00 | Q116: 0 | R116: 0 | S116: =IF(R115=0,R$14,0) -> $75.00 | T116: 0 | U116: 0 | V116: =IF(U115=0,U$14,0) -> $233.00 | W116: 0 | X116: 0 | Y116: =IF(X115=0,X$14,0) -> 0
B117: 100 | C117: 0 | D117: 0 | E117: 0 | F117: 0 | G117: $30.00 | H117: 0 | I117: 0 | J117: $30.00 | K117: 0 | L117: 0 | M117: $150.00 | N117: 0 | O117: 0 | P117: $41.00 | Q117: 0 | R117: 0 | S117: =IF(R116=0,R$14,0) -> $75.00 | T117: 0 | U117: 0 | V117: =IF(U116=0,U$14,0) -> $233.00 | W117: 0 | X117: 0 | Y117: =IF(X116=0,X$14,0) -> 0
B118: 101 | C118: 0 | D118: 0 | E118: 0 | F118: 0 | G118: $30.00 | H118: 0 | I118: 0 | J118: $30.00 | K118: 0 | L118: 0 | M118: $150.00 | N118: 0 | O118: 0 | P118: $41.00 | Q118: 0 | R118: 0 | S118: =IF(R117=0,R$14,0) -> $75.00 | T118: 0 | U118: 0 | V118: =IF(U117=0,U$14,0) -> $233.00 | W118: 0 | X118: 0 | Y118: =IF(X117=0,X$14,0) -> 0
B119: 102 | C119: 0 | D119: 0 | E119: 0 | F119: 0 | G119: $30.00 | H119: 0 | I119: 0 | J119: $30.00 | K119: 0 | L119: 0 | M119: $150.00 | N119: 0 | O119: 0 | P119: $41.00 | Q119: 0 | R119: 0 | S119: =IF(R118=0,R$14,0) -> $75.00 | T119: 0 | U119: 0 | V119: =IF(U118=0,U$14,0) -> $233.00 | W119: 0 | X119: 0 | Y119: =IF(X118=0,X$14,0) -> 0
B120: 103 | C120: 0 | D120: 0 | E120: 0 | F120: 0 | G120: $30.00 | H120: 0 | I120: 0 | J120: $30.00 | K120: 0 | L120: 0 | M120: $150.00 | N120: 0 | O120: 0 | P120: $41.00 | Q120: 0 | R120: 0 | S120: =IF(R119=0,R$14,0) -> $75.00 | T120: 0 | U120: 0 | V120: =IF(U119=0,U$14,0) -> $233.00 | W120: 0 | X120: 0 | Y120: =IF(X119=0,X$14,0) -> 0
B121: 104 | C121: 0 | D121: 0 | E121: 0 | F121: 0 | G121: $30.00 | H121: 0 | I121: 0 | J121: $30.00 | K121: 0 | L121: 0 | M121: $150.00 | N121: 0 | O121: 0 | P121: $41.00 | Q121: 0 | R121: 0 | S121: =IF(R120=0,R$14,0) -> $75.00 | T121: 0 | U121: 0 | V121: =IF(U120=0,U$14,0) -> $233.00 | W121: 0 | X121: 0 | Y121: =IF(X120=0,X$14,0) -> 0
B122: 105 | C122: 0 | D122: 0 | E122: 0 | F122: 0 | G122: $30.00 | H122: 0 | I122: 0 | J122: $30.00 | K122: 0 | L122: 0 | M122: $150.00 | N122: 0 | O122: 0 | P122: $41.00 | Q122: 0 | R122: 0 | S122: =IF(R121=0,R$14,0) -> $75.00 | T122: 0 | U122: 0 | V122: =IF(U121=0,U$14,0) -> $233.00 | W122: 0 | X122: 0 | Y122: =IF(X121=0,X$14,0) -> 0
B123: 106 | C123: 0 | D123: 0 | E123: 0 | F123: 0 | G123: $30.00 | H123: 0 | I123: 0 | J123: $30.00 | K123: 0 | L123: 0 | M123: $150.00 | N123: 0 | O123: 0 | P123: $41.00 | Q123: 0 | R123: 0 | S123: =IF(R122=0,R$14,0) -> $75.00 | T123: 0 | U123: 0 | V123: =IF(U122=0,U$14,0) -> $233.00 | W123: 0 | X123: 0 | Y123: =IF(X122=0,X$14,0) -> 0
B124: 107 | C124: 0 | D124: 0 | E124: 0 | F124: 0 | G124: $30.00 | H124: 0 | I124: 0 | J124: $30.00 | K124: 0 | L124: 0 | M124: $150.00 | N124: 0 | O124: 0 | P124: $41.00 | Q124: 0 | R124: 0 | S124: =IF(R123=0,R$14,0) -> $75.00 | T124: 0 | U124: 0 | V124: =IF(U123=0,U$14,0) -> $233.00 | W124: 0 | X124: 0 | Y124: =IF(X123=0,X$14,0) -> 0
B125: 108 | C125: 0 | D125: 0 | E125: 0 | F125: 0 | G125: $30.00 | H125: 0 | I125: 0 | J125: $30.00 | K125: 0 | L125: 0 | M125: $150.00 | N125: 0 | O125: 0 | P125: $41.00 | Q125: 0 | R125: 0 | S125: =IF(R124=0,R$14,0) -> $75.00 | T125: 0 | U125: 0 | V125: =IF(U124=0,U$14,0) -> $233.00 | W125: 0 | X125: 0 | Y125: =IF(X124=0,X$14,0) -> 0
B126: 109 | C126: 0 | D126: 0 | E126: 0 | F126: 0 | G126: $30.00 | H126: 0 | I126: 0 | J126: $30.00 | K126: 0 | L126: 0 | M126: $150.00 | N126: 0 | O126: 0 | P126: $41.00 | Q126: 0 | R126: 0 | S126: =IF(R125=0,R$14,0) -> $75.00 | T126: 0 | U126: 0 | V126: =IF(U125=0,U$14,0) -> $233.00 | W126: 0 | X126: 0 | Y126: =IF(X125=0,X$14,0) -> 0
B127: 110 | C127: 0 | D127: 0 | E127: 0 | F127: 0 | G127: $30.00 | H127: 0 | I127: 0 | J127: $30.00 | K127: 0 | L127: 0 | M127: $150.00 | N127: 0 | O127: 0 | P127: $41.00 | Q127: 0 | R127: 0 | S127: =IF(R126=0,R$14,0) -> $75.00 | T127: 0 | U127: 0 | V127: =IF(U126=0,U$14,0) -> $233.00 | W127: 0 | X127: 0 | Y127: =IF(X126=0,X$14,0) -> 0
B128: 111 | C128: 0 | D128: 0 | E128: 0 | F128: 0 | G128: $30.00 | H128: 0 | I128: 0 | J128: $30.00 | K128: 0 | L128: 0 | M128: $150.00 | N128: 0 | O128: 0 | P128: $41.00 | Q128: 0 | R128: 0 | S128: =IF(R127=0,R$14,0) -> $75.00 | T128: 0 | U128: 0 | V128: =IF(U127=0,U$14,0) -> $233.00 | W128: 0 | X128: 0 | Y128: =IF(X127=0,X$14,0) -> 0
B129: 112 | C129: 0 | D129: 0 | E129: 0 | F129: 0 | G129: $30.00 | H129: 0 | I129: 0 | J129: $30.00 | K129: 0 | L129: 0 | M129: $150.00 | N129: 0 | O129: 0 | P129: $41.00 | Q129: 0 | R129: 0 | S129: =IF(R128=0,R$14,0) -> $75.00 | T129: 0 | U129: 0 | V129: =IF(U128=0,U$14,0) -> $233.00 | W129: 0 | X129: 0 | Y129: =IF(X128=0,X$14,0) -> 0
B130: 113 | C130: 0 | D130: 0 | E130: 0 | F130: 0 | G130: $30.00 | H130: 0 | I130: 0 | J130: $30.00 | K130: 0 | L130: 0 | M130: $150.00 | N130: 0 | O130: 0 | P130: $41.00 | Q130: 0 | R130: 0 | S130: =IF(R129=0,R$14,0) -> $75.00 | T130: 0 | U130: 0 | V130: =IF(U129=0,U$14,0) -> $233.00 | W130: 0 | X130: 0 | Y130: =IF(X129=0,X$14,0) -> 0
B131: 114 | C131: 0 | D131: 0 | E131: 0 | F131: 0 | G131: $30.00 | H131: 0 | I131: 0 | J131: $30.00 | K131: 0 | L131: 0 | M131: $150.00 | N131: 0 | O131: 0 | P131: $41.00 | Q131: 0 | R131: 0 | S131: =IF(R130=0,R$14,0) -> $75.00 | T131: 0 | U131: 0 | V131: =IF(U130=0,U$14,0) -> $233.00 | W131: 0 | X131: 0 | Y131: =IF(X130=0,X$14,0) -> 0
B132: 115 | C132: 0 | D132: 0 | E132: 0 | F132: 0 | G132: $30.00 | H132: 0 | I132: 0 | J132: $30.00 | K132: 0 | L132: 0 | M132: $150.00 | N132: 0 | O132: 0 | P132: $41.00 | Q132: 0 | R132: 0 | S132: =IF(R131=0,R$14,0) -> $75.00 | T132: 0 | U132: 0 | V132: =IF(U131=0,U$14,0) -> $233.00 | W132: 0 | X132: 0 | Y132: =IF(X131=0,X$14,0) -> 0
B133: 116 | C133: 0 | D133: 0 | E133: 0 | F133: 0 | G133: $30.00 | H133: 0 | I133: 0 | J133: $30.00 | K133: 0 | L133: 0 | M133: $150.00 | N133: 0 | O133: 0 | P133: $41.00 | Q133: 0 | R133: 0 | S133: =IF(R132=0,R$14,0) -> $75.00 | T133: 0 | U133: 0 | V133: =IF(U132=0,U$14,0) -> $233.00 | W133: 0 | X133: 0 | Y133: =IF(X132=0,X$14,0) -> 0
B134: 117 | C134: 0 | D134: 0 | E134: 0 | F134: 0 | G134: $30.00 | H134: 0 | I134: 0 | J134: $30.00 | K134: 0 | L134: 0 | M134: $150.00 | N134: 0 | O134: 0 | P134: $41.00 | Q134: 0 | R134: 0 | S134: =IF(R133=0,R$14,0) -> $75.00 | T134: 0 | U134: 0 | V134: =IF(U133=0,U$14,0) -> $233.00 | W134: 0 | X134: 0 | Y134: =IF(X133=0,X$14,0) -> 0
B135: 118 | C135: 0 | D135: 0 | E135: 0 | F135: 0 | G135: $30.00 | H135: 0 | I135: 0 | J135: $30.00 | K135: 0 | L135: 0 | M135: $150.00 | N135: 0 | O135: 0 | P135: $41.00 | Q135: 0 | R135: 0 | S135: =IF(R134=0,R$14,0) -> $75.00 | T135: 0 | U135: 0 | V135: =IF(U134=0,U$14,0) -> $233.00 | W135: 0 | X135: 0 | Y135: =IF(X134=0,X$14,0) -> 0
B136: 119 | C136: 0 | D136: 0 | E136: 0 | F136: 0 | G136: $30.00 | H136: 0 | I136: 0 | J136: $30.00 | K136: 0 | L136: 0 | M136: $150.00 | N136: 0 | O136: 0 | P136: $41.00 | Q136: 0 | R136: 0 | S136: =IF(R135=0,R$14,0) -> $75.00 | T136: 0 | U136: 0 | V136: =IF(U135=0,U$14,0) -> $233.00 | W136: 0 | X136: 0 | Y136: =IF(X135=0,X$14,0) -> 0
B137: 120 | C137: 0 | D137: 0 | E137: 0 | F137: 0 | G137: $30.00 | H137: 0 | I137: 0 | J137: $30.00 | K137: 0 | L137: 0 | M137: $150.00 | N137: 0 | O137: 0 | P137: $41.00 | Q137: 0 | R137: 0 | S137: =IF(R136=0,R$14,0) -> $75.00 | T137: 0 | U137: 0 | V137: =IF(U136=0,U$14,0) -> $233.00 | W137: 0 | X137: 0 | Y137: =IF(X136=0,X$14,0) -> 0

Sheet Debt Payoff Chart
C3: Debt Payoff Chart | H3: Enter all your numbers in the Debt Avalanche tab and then click "Refresh Chart" to the right. | W3: Provided by: LifeAndMyFinances.com
H4: Then, print this sheet, put it on your fridge, and mark how well you're doing vs. your goal! | W4: Copyright 2022
H5: Color in the squares as you go and pay off that debt faster than you planned! Good luck!
C10: Monthly Tracker!
B13: X | C13: Y
A14: Max | B14: =$L$19 -> 36 | C14: =C16*11 -> 33,000.00
A15: Min | B15: 0 | C15: 0
A16: Incre | B16: 1 | C16: =ROUNDUP($J$19/11,-3) -> $3,000.00
I18: Month | J18: Debt Amount | L18: Debt Payoff Month
I19: 0 | J19: =SUM('Debt Avalanche'!D13:Y13) -> $25,000.00 | K19: 0 | L19: =VLOOKUP(I19,$J$19:$K$139,2,FALSE) -> 36
I20: 1 | J20: =SUM('Debt Avalanche'!D18,'Debt Avalanche'!F18,'Debt Avalanche'!I18,'Debt Avalanche'!L18,'Debt Avalanche'!O18,'Debt Avalanche'!R18,'Debt Avalanche'!U18,'Debt Avalanche'!X18) -> $23,996.00 | K20: 1
I21: 2 | J21: =SUM('Debt Avalanche'!D19,'Debt Avalanche'!F19,'Debt Avalanche'!I19,'Debt Avalanche'!L19,'Debt Avalanche'!O19,'Debt Avalanche'!R19,'Debt Avalanche'!U19,'Debt Avalanche'!X19) -> $23,452.38 | K21: 2
I22: 3 | J22: =SUM('Debt Avalanche'!D20,'Debt Avalanche'!F20,'Debt Avalanche'!I20,'Debt Avalanche'!L20,'Debt Avalanche'!O20,'Debt Avalanche'!R20,'Debt Avalanche'!U20,'Debt Avalanche'!X20) -> $22,900.58 | K22: 3
I23: 4 | J23: =SUM('Debt Avalanche'!D21,'Debt Avalanche'!F21,'Debt Avalanche'!I21,'Debt Avalanche'!L21,'Debt Avalanche'!O21,'Debt Avalanche'!R21,'Debt Avalanche'!U21,'Debt Avalanche'!X21) -> $22,340.47 | K23: 4
I24: 5 | J24: =SUM('Debt Avalanche'!D22,'Debt Avalanche'!F22,'Debt Avalanche'!I22,'Debt Avalanche'!L22,'Debt Avalanche'!O22,'Debt Avalanche'!R22,'Debt Avalanche'!U22,'Debt Avalanche'!X22) -> $21,771.89 | K24: 5
I25: 6 | J25: =SUM('Debt Avalanche'!D23,'Debt Avalanche'!F23,'Debt Avalanche'!I23,'Debt Avalanche'!L23,'Debt Avalanche'!O23,'Debt Avalanche'!R23,'Debt Avalanche'!U23,'Debt Avalanche'!X23) -> $21,194.72 | K25: 6
I26: 7 | J26: =SUM('Debt Avalanche'!D24,'Debt Avalanche'!F24,'Debt Avalanche'!I24,'Debt Avalanche'!L24,'Debt Avalanche'!O24,'Debt Avalanche'!R24,'Debt Avalanche'!U24,'Debt Avalanche'!X24) -> $20,608.80 | K26: 7
I27: 8 | J27: =SUM('Debt Avalanche'!D25,'Debt Avalanche'!F25,'Debt Avalanche'!I25,'Debt Avalanche'!L25,'Debt Avalanche'!O25,'Debt Avalanche'!R25,'Debt Avalanche'!U25,'Debt Avalanche'!X25) -> $20,013.97 | K27: 8
I28: 9 | J28: =SUM('Debt Avalanche'!D26,'Debt Avalanche'!F26,'Debt Avalanche'!I26,'Debt Avalanche'!L26,'Debt Avalanche'!O26,'Debt Avalanche'!R26,'Debt Avalanche'!U26,'Debt Avalanche'!X26) -> $19,410.10 | K28: 9
I29: 10 | J29: =SUM('Debt Avalanche'!D27,'Debt Avalanche'!F27,'Debt Avalanche'!I27,'Debt Avalanche'!L27,'Debt Avalanche'!O27,'Debt Avalanche'!R27,'Debt Avalanche'!U27,'Debt Avalanche'!X27) -> $18,797.02 | K29: 10
I30: 11 | J30: =SUM('Debt Avalanche'!D28,'Debt Avalanche'!F28,'Debt Avalanche'!I28,'Debt Avalanche'!L28,'Debt Avalanche'!O28,'Debt Avalanche'!R28,'Debt Avalanche'!U28,'Debt Avalanche'!X28) -> $18,174.77 | K30: 11
I31: 12 | J31: =SUM('Debt Avalanche'!D29,'Debt Avalanche'!F29,'Debt Avalanche'!I29,'Debt Avalanche'!L29,'Debt Avalanche'!O29,'Debt Avalanche'!R29,'Debt Avalanche'!U29,'Debt Avalanche'!X29) -> $17,543.26 | K31: 12 | L31: Month
I32: 13 | J32: =SUM('Debt Avalanche'!D30,'Debt Avalanche'!F30,'Debt Avalanche'!I30,'Debt Avalanche'!L30,'Debt Avalanche'!O30,'Debt Avalanche'!R30,'Debt Avalanche'!U30,'Debt Avalanche'!X30) -> $16,902.34 | K32: 13
I33: 14 | J33: =SUM('Debt Avalanche'!D31,'Debt Avalanche'!F31,'Debt Avalanche'!I31,'Debt Avalanche'!L31,'Debt Avalanche'!O31,'Debt Avalanche'!R31,'Debt Avalanche'!U31,'Debt Avalanche'!X31) -> $16,251.86 | K33: 14
I34: 15 | J34: =SUM('Debt Avalanche'!D32,'Debt Avalanche'!F32,'Debt Avalanche'!I32,'Debt Avalanche'!L32,'Debt Avalanche'!O32,'Debt Avalanche'!R32,'Debt Avalanche'!U32,'Debt Avalanche'!X32) -> $15,591.65 | K34: 15
I35: 16 | J35: =SUM('Debt Avalanche'!D33,'Debt Avalanche'!F33,'Debt Avalanche'!I33,'Debt Avalanche'!L33,'Debt Avalanche'!O33,'Debt Avalanche'!R33,'Debt Avalanche'!U33,'Debt Avalanche'!X33) -> $14,921.57 | K35: 16
I36: 17 | J36: =SUM('Debt Avalanche'!D34,'Debt Avalanche'!F34,'Debt Avalanche'!I34,'Debt Avalanche'!L34,'Debt Avalanche'!O34,'Debt Avalanche'!R34,'Debt Avalanche'!U34,'Debt Avalanche'!X34) -> $14,241.70 | K36: 17
I37: 18 | J37: =SUM('Debt Avalanche'!D35,'Debt Avalanche'!F35,'Debt Avalanche'!I35,'Debt Avalanche'!L35,'Debt Avalanche'!O35,'Debt Avalanche'!R35,'Debt Avalanche'!U35,'Debt Avalanche'!X35) -> $13,551.89 | K37: 18 | L37: Month
I38: 19 | J38: =SUM('Debt Avalanche'!D36,'Debt Avalanche'!F36,'Debt Avalanche'!I36,'Debt Avalanche'!L36,'Debt Avalanche'!O36,'Debt Avalanche'!R36,'Debt Avalanche'!U36,'Debt Avalanche'!X36) -> $12,851.97 | K38: 19
I39: 20 | J39: =SUM('Debt Avalanche'!D37,'Debt Avalanche'!F37,'Debt Avalanche'!I37,'Debt Avalanche'!L37,'Debt Avalanche'!O37,'Debt Avalanche'!R37,'Debt Avalanche'!U37,'Debt Avalanche'!X37) -> $12,141.78 | K39: 20
I40: 21 | J40: =SUM('Debt Avalanche'!D38,'Debt Avalanche'!F38,'Debt Avalanche'!I38,'Debt Avalanche'!L38,'Debt Avalanche'!O38,'Debt Avalanche'!R38,'Debt Avalanche'!U38,'Debt Avalanche'!X38) -> $11,421.36 | K40: 21
I41: 22 | J41: =SUM('Debt Avalanche'!D39,'Debt Avalanche'!F39,'Debt Avalanche'!I39,'Debt Avalanche'!L39,'Debt Avalanche'!O39,'Debt Avalanche'!R39,'Debt Avalanche'!U39,'Debt Avalanche'!X39) -> $10,690.78 | K41: 22
I42: 23 | J42: =SUM('Debt Avalanche'!D40,'Debt Avalanche'!F40,'Debt Avalanche'!I40,'Debt Avalanche'!L40,'Debt Avalanche'!O40,'Debt Avalanche'!R40,'Debt Avalanche'!U40,'Debt Avalanche'!X40) -> $9,949.89 | K42: 23
I43: 24 | J43: =SUM('Debt Avalanche'!D41,'Debt Avalanche'!F41,'Debt Avalanche'!I41,'Debt Avalanche'!L41,'Debt Avalanche'!O41,'Debt Avalanche'!R41,'Debt Avalanche'!U41,'Debt Avalanche'!X41) -> $9,377.66 | K43: 24
I44: 25 | J44: =SUM('Debt Avalanche'!D42,'Debt Avalanche'!F42,'Debt Avalanche'!I42,'Debt Avalanche'!L42,'Debt Avalanche'!O42,'Debt Avalanche'!R42,'Debt Avalanche'!U42,'Debt Avalanche'!X42) -> $8,614.96 | K44: 25
I45: 26 | J45: =SUM('Debt Avalanche'!D43,'Debt Avalanche'!F43,'Debt Avalanche'!I43,'Debt Avalanche'!L43,'Debt Avalanche'!O43,'Debt Avalanche'!R43,'Debt Avalanche'!U43,'Debt Avalanche'!X43) -> $7,839.29 | K45: 26
I46: 27 | J46: =SUM('Debt Avalanche'!D44,'Debt Avalanche'!F44,'Debt Avalanche'!I44,'Debt Avalanche'!L44,'Debt Avalanche'!O44,'Debt Avalanche'!R44,'Debt Avalanche'!U44,'Debt Avalanche'!X44) -> $7,050.41 | K46: 27
I47: 28 | J47: =SUM('Debt Avalanche'!D45,'Debt Avalanche'!F45,'Debt Avalanche'!I45,'Debt Avalanche'!L45,'Debt Avalanche'!O45,'Debt Avalanche'!R45,'Debt Avalanche'!U45,'Debt Avalanche'!X45) -> $6,248.12 | K47: 28
I48: 29 | J48: =SUM('Debt Avalanche'!D46,'Debt Avalanche'!F46,'Debt Avalanche'!I46,'Debt Avalanche'!L46,'Debt Avalanche'!O46,'Debt Avalanche'!R46,'Debt Avalanche'!U46,'Debt Avalanche'!X46) -> $5,432.18 | K48: 29
I49: 30 | J49: =SUM('Debt Avalanche'!D47,'Debt Avalanche'!F47,'Debt Avalanche'!I47,'Debt Avalanche'!L47,'Debt Avalanche'!O47,'Debt Avalanche'!R47,'Debt Avalanche'!U47,'Debt Avalanche'!X47) -> $4,602.36 | K49: 30
I50: 31 | J50: =SUM('Debt Avalanche'!D48,'Debt Avalanche'!F48,'Debt Avalanche'!I48,'Debt Avalanche'!L48,'Debt Avalanche'!O48,'Debt Avalanche'!R48,'Debt Avalanche'!U48,'Debt Avalanche'!X48) -> $3,758.46 | K50: 31
I51: 32 | J51: =SUM('Debt Avalanche'!D49,'Debt Avalanche'!F49,'Debt Avalanche'!I49,'Debt Avalanche'!L49,'Debt Avalanche'!O49,'Debt Avalanche'!R49,'Debt Avalanche'!U49,'Debt Avalanche'!X49) -> $2,900.61 | K51: 32
I52: 33 | J52: =SUM('Debt Avalanche'!D50,'Debt Avalanche'!F50,'Debt Avalanche'!I50,'Debt Avalanche'!L50,'Debt Avalanche'!O50,'Debt Avalanche'!R50,'Debt Avalanche'!U50,'Debt Avalanche'!X50) -> $2,028.56 | K52: 33
I53: 34 | J53: =SUM('Debt Avalanche'!D51,'Debt Avalanche'!F51,'Debt Avalanche'!I51,'Debt Avalanche'!L51,'Debt Avalanche'!O51,'Debt Avalanche'!R51,'Debt Avalanche'!U51,'Debt Avalanche'!X51) -> $1,142.08 | K53: 34
I54: 35 | J54: =SUM('Debt Avalanche'!D52,'Debt Avalanche'!F52,'Debt Avalanche'!I52,'Debt Avalanche'!L52,'Debt Avalanche'!O52,'Debt Avalanche'!R52,'Debt Avalanche'!U52,'Debt Avalanche'!X52) -> $241.65 | K54: 35
I55: 36 | J55: =SUM('Debt Avalanche'!D53,'Debt Avalanche'!F53,'Debt Avalanche'!I53,'Debt Avalanche'!L53,'Debt Avalanche'!O53,'Debt Avalanche'!R53,'Debt Avalanche'!U53,'Debt Avalanche'!X53) -> 0 | K55: 36
I56: 37 | J56: =SUM('Debt Avalanche'!D54,'Debt Avalanche'!F54,'Debt Avalanche'!I54,'Debt Avalanche'!L54,'Debt Avalanche'!O54,'Debt Avalanche'!R54,'Debt Avalanche'!U54,'Debt Avalanche'!X54) -> 0 | K56: 37
I57: 38 | J57: =SUM('Debt Avalanche'!D55,'Debt Avalanche'!F55,'Debt Avalanche'!I55,'Debt Avalanche'!L55,'Debt Avalanche'!O55,'Debt Avalanche'!R55,'Debt Avalanche'!U55,'Debt Avalanche'!X55) -> 0 | K57: 38
I58: 39 | J58: =SUM('Debt Avalanche'!D56,'Debt Avalanche'!F56,'Debt Avalanche'!I56,'Debt Avalanche'!L56,'Debt Avalanche'!O56,'Debt Avalanche'!R56,'Debt Avalanche'!U56,'Debt Avalanche'!X56) -> 0 | K58: 39
I59: 40 | J59: =SUM('Debt Avalanche'!D57,'Debt Avalanche'!F57,'Debt Avalanche'!I57,'Debt Avalanche'!L57,'Debt Avalanche'!O57,'Debt Avalanche'!R57,'Debt Avalanche'!U57,'Debt Avalanche'!X57) -> 0 | K59: 40
I60: 41 | J60: =SUM('Debt Avalanche'!D58,'Debt Avalanche'!F58,'Debt Avalanche'!I58,'Debt Avalanche'!L58,'Debt Avalanche'!O58,'Debt Avalanche'!R58,'Debt Avalanche'!U58,'Debt Avalanche'!X58) -> 0 | K60: 41
I61: 42 | J61: =SUM('Debt Avalanche'!D59,'Debt Avalanche'!F59,'Debt Avalanche'!I59,'Debt Avalanche'!L59,'Debt Avalanche'!O59,'Debt Avalanche'!R59,'Debt Avalanche'!U59,'Debt Avalanche'!X59) -> 0 | K61: 42
I62: 43 | J62: =SUM('Debt Avalanche'!D60,'Debt Avalanche'!F60,'Debt Avalanche'!I60,'Debt Avalanche'!L60,'Debt Avalanche'!O60,'Debt Avalanche'!R60,'Debt Avalanche'!U60,'Debt Avalanche'!X60) -> 0 | K62: 43
I63: 44 | J63: =SUM('Debt Avalanche'!D61,'Debt Avalanche'!F61,'Debt Avalanche'!I61,'Debt Avalanche'!L61,'Debt Avalanche'!O61,'Debt Avalanche'!R61,'Debt Avalanche'!U61,'Debt Avalanche'!X61) -> 0 | K63: 44
I64: 45 | J64: =SUM('Debt Avalanche'!D62,'Debt Avalanche'!F62,'Debt Avalanche'!I62,'Debt Avalanche'!L62,'Debt Avalanche'!O62,'Debt Avalanche'!R62,'Debt Avalanche'!U62,'Debt Avalanche'!X62) -> 0 | K64: 45
I65: 46 | J65: =SUM('Debt Avalanche'!D63,'Debt Avalanche'!F63,'Debt Avalanche'!I63,'Debt Avalanche'!L63,'Debt Avalanche'!O63,'Debt Avalanche'!R63,'Debt Avalanche'!U63,'Debt Avalanche'!X63) -> 0 | K65: 46
I66: 47 | J66: =SUM('Debt Avalanche'!D64,'Debt Avalanche'!F64,'Debt Avalanche'!I64,'Debt Avalanche'!L64,'Debt Avalanche'!O64,'Debt Avalanche'!R64,'Debt Avalanche'!U64,'Debt Avalanche'!X64) -> 0 | K66: 47
I67: 48 | J67: =SUM('Debt Avalanche'!D65,'Debt Avalanche'!F65,'Debt Avalanche'!I65,'Debt Avalanche'!L65,'Debt Avalanche'!O65,'Debt Avalanche'!R65,'Debt Avalanche'!U65,'Debt Avalanche'!X65) -> 0 | K67: 48
I68: 49 | J68: =SUM('Debt Avalanche'!D66,'Debt Avalanche'!F66,'Debt Avalanche'!I66,'Debt Avalanche'!L66,'Debt Avalanche'!O66,'Debt Avalanche'!R66,'Debt Avalanche'!U66,'Debt Avalanche'!X66) -> 0 | K68: 49
I69: 50 | J69: =SUM('Debt Avalanche'!D67,'Debt Avalanche'!F67,'Debt Avalanche'!I67,'Debt Avalanche'!L67,'Debt Avalanche'!O67,'Debt Avalanche'!R67,'Debt Avalanche'!U67,'Debt Avalanche'!X67) -> 0 | K69: 50
I70: 51 | J70: =SUM('Debt Avalanche'!D68,'Debt Avalanche'!F68,'Debt Avalanche'!I68,'Debt Avalanche'!L68,'Debt Avalanche'!O68,'Debt Avalanche'!R68,'Debt Avalanche'!U68,'Debt Avalanche'!X68) -> 0 | K70: 51
I71: 52 | J71: =SUM('Debt Avalanche'!D69,'Debt Avalanche'!F69,'Debt Avalanche'!I69,'Debt Avalanche'!L69,'Debt Avalanche'!O69,'Debt Avalanche'!R69,'Debt Avalanche'!U69,'Debt Avalanche'!X69) -> 0 | K71: 52
I72: 53 | J72: =SUM('Debt Avalanche'!D70,'Debt Avalanche'!F70,'Debt Avalanche'!I70,'Debt Avalanche'!L70,'Debt Avalanche'!O70,'Debt Avalanche'!R70,'Debt Avalanche'!U70,'Debt Avalanche'!X70) -> 0 | K72: 53
I73: 54 | J73: =SUM('Debt Avalanche'!D71,'Debt Avalanche'!F71,'Debt Avalanche'!I71,'Debt Avalanche'!L71,'Debt Avalanche'!O71,'Debt Avalanche'!R71,'Debt Avalanche'!U71,'Debt Avalanche'!X71) -> 0 | K73: 54
I74: 55 | J74: =SUM('Debt Avalanche'!D72,'Debt Avalanche'!F72,'Debt Avalanche'!I72,'Debt Avalanche'!L72,'Debt Avalanche'!O72,'Debt Avalanche'!R72,'Debt Avalanche'!U72,'Debt Avalanche'!X72) -> 0 | K74: 55
I75: 56 | J75: =SUM('Debt Avalanche'!D73,'Debt Avalanche'!F73,'Debt Avalanche'!I73,'Debt Avalanche'!L73,'Debt Avalanche'!O73,'Debt Avalanche'!R73,'Debt Avalanche'!U73,'Debt Avalanche'!X73) -> 0 | K75: 56
I76: 57 | J76: =SUM('Debt Avalanche'!D74,'Debt Avalanche'!F74,'Debt Avalanche'!I74,'Debt Avalanche'!L74,'Debt Avalanche'!O74,'Debt Avalanche'!R74,'Debt Avalanche'!U74,'Debt Avalanche'!X74) -> 0 | K76: 57
I77: 58 | J77: =SUM('Debt Avalanche'!D75,'Debt Avalanche'!F75,'Debt Avalanche'!I75,'Debt Avalanche'!L75,'Debt Avalanche'!O75,'Debt Avalanche'!R75,'Debt Avalanche'!U75,'Debt Avalanche'!X75) -> 0 | K77: 58
I78: 59 | J78: =SUM('Debt Avalanche'!D76,'Debt Avalanche'!F76,'Debt Avalanche'!I76,'Debt Avalanche'!L76,'Debt Avalanche'!O76,'Debt Avalanche'!R76,'Debt Avalanche'!U76,'Debt Avalanche'!X76) -> 0 | K78: 59
I79: 60 | J79: =SUM('Debt Avalanche'!D77,'Debt Avalanche'!F77,'Debt Avalanche'!I77,'Debt Avalanche'!L77,'Debt Avalanche'!O77,'Debt Avalanche'!R77,'Debt Avalanche'!U77,'Debt Avalanche'!X77) -> 0 | K79: 60
I80: 61 | J80: =SUM('Debt Avalanche'!D78,'Debt Avalanche'!F78,'Debt Avalanche'!I78,'Debt Avalanche'!L78,'Debt Avalanche'!O78,'Debt Avalanche'!R78,'Debt Avalanche'!U78,'Debt Avalanche'!X78) -> 0 | K80: 61
I81: 62 | J81: =SUM('Debt Avalanche'!D79,'Debt Avalanche'!F79,'Debt Avalanche'!I79,'Debt Avalanche'!L79,'Debt Avalanche'!O79,'Debt Avalanche'!R79,'Debt Avalanche'!U79,'Debt Avalanche'!X79) -> 0 | K81: 62
I82: 63 | J82: =SUM('Debt Avalanche'!D80,'Debt Avalanche'!F80,'Debt Avalanche'!I80,'Debt Avalanche'!L80,'Debt Avalanche'!O80,'Debt Avalanche'!R80,'Debt Avalanche'!U80,'Debt Avalanche'!X80) -> 0 | K82: 63
I83: 64 | J83: =SUM('Debt Avalanche'!D81,'Debt Avalanche'!F81,'Debt Avalanche'!I81,'Debt Avalanche'!L81,'Debt Avalanche'!O81,'Debt Avalanche'!R81,'Debt Avalanche'!U81,'Debt Avalanche'!X81) -> 0 | K83: 64
I84: 65 | J84: =SUM('Debt Avalanche'!D82,'Debt Avalanche'!F82,'Debt Avalanche'!I82,'Debt Avalanche'!L82,'Debt Avalanche'!O82,'Debt Avalanche'!R82,'Debt Avalanche'!U82,'Debt Avalanche'!X82) -> 0 | K84: 65
I85: 66 | J85: =SUM('Debt Avalanche'!D83,'Debt Avalanche'!F83,'Debt Avalanche'!I83,'Debt Avalanche'!L83,'Debt Avalanche'!O83,'Debt Avalanche'!R83,'Debt Avalanche'!U83,'Debt Avalanche'!X83) -> 0 | K85: 66
I86: 67 | J86: =SUM('Debt Avalanche'!D84,'Debt Avalanche'!F84,'Debt Avalanche'!I84,'Debt Avalanche'!L84,'Debt Avalanche'!O84,'Debt Avalanche'!R84,'Debt Avalanche'!U84,'Debt Avalanche'!X84) -> 0 | K86: 67
I87: 68 | J87: =SUM('Debt Avalanche'!D85,'Debt Avalanche'!F85,'Debt Avalanche'!I85,'Debt Avalanche'!L85,'Debt Avalanche'!O85,'Debt Avalanche'!R85,'Debt Avalanche'!U85,'Debt Avalanche'!X85) -> 0 | K87: 68
I88: 69 | J88: =SUM('Debt Avalanche'!D86,'Debt Avalanche'!F86,'Debt Avalanche'!I86,'Debt Avalanche'!L86,'Debt Avalanche'!O86,'Debt Avalanche'!R86,'Debt Avalanche'!U86,'Debt Avalanche'!X86) -> 0 | K88: 69
I89: 70 | J89: =SUM('Debt Avalanche'!D87,'Debt Avalanche'!F87,'Debt Avalanche'!I87,'Debt Avalanche'!L87,'Debt Avalanche'!O87,'Debt Avalanche'!R87,'Debt Avalanche'!U87,'Debt Avalanche'!X87) -> 0 | K89: 70
I90: 71 | J90: =SUM('Debt Avalanche'!D88,'Debt Avalanche'!F88,'Debt Avalanche'!I88,'Debt Avalanche'!L88,'Debt Avalanche'!O88,'Debt Avalanche'!R88,'Debt Avalanche'!U88,'Debt Avalanche'!X88) -> 0 | K90: 71
I91: 72 | J91: =SUM('Debt Avalanche'!D89,'Debt Avalanche'!F89,'Debt Avalanche'!I89,'Debt Avalanche'!L89,'Debt Avalanche'!O89,'Debt Avalanche'!R89,'Debt Avalanche'!U89,'Debt Avalanche'!X89) -> 0 | K91: 72
I92: 73 | J92: =SUM('Debt Avalanche'!D90,'Debt Avalanche'!F90,'Debt Avalanche'!I90,'Debt Avalanche'!L90,'Debt Avalanche'!O90,'Debt Avalanche'!R90,'Debt Avalanche'!U90,'Debt Avalanche'!X90) -> 0 | K92: 73
I93: 74 | J93: =SUM('Debt Avalanche'!D91,'Debt Avalanche'!F91,'Debt Avalanche'!I91,'Debt Avalanche'!L91,'Debt Avalanche'!O91,'Debt Avalanche'!R91,'Debt Avalanche'!U91,'Debt Avalanche'!X91) -> 0 | K93: 74
I94: 75 | J94: =SUM('Debt Avalanche'!D92,'Debt Avalanche'!F92,'Debt Avalanche'!I92,'Debt Avalanche'!L92,'Debt Avalanche'!O92,'Debt Avalanche'!R92,'Debt Avalanche'!U92,'Debt Avalanche'!X92) -> 0 | K94: 75
I95: 76 | J95: =SUM('Debt Avalanche'!D93,'Debt Avalanche'!F93,'Debt Avalanche'!I93,'Debt Avalanche'!L93,'Debt Avalanche'!O93,'Debt Avalanche'!R93,'Debt Avalanche'!U93,'Debt Avalanche'!X93) -> 0 | K95: 76
I96: 77 | J96: =SUM('Debt Avalanche'!D94,'Debt Avalanche'!F94,'Debt Avalanche'!I94,'Debt Avalanche'!L94,'Debt Avalanche'!O94,'Debt Avalanche'!R94,'Debt Avalanche'!U94,'Debt Avalanche'!X94) -> 0 | K96: 77
I97: 78 | J97: =SUM('Debt Avalanche'!D95,'Debt Avalanche'!F95,'Debt Avalanche'!I95,'Debt Avalanche'!L95,'Debt Avalanche'!O95,'Debt Avalanche'!R95,'Debt Avalanche'!U95,'Debt Avalanche'!X95) -> 0 | K97: 78
I98: 79 | J98: =SUM('Debt Avalanche'!D96,'Debt Avalanche'!F96,'Debt Avalanche'!I96,'Debt Avalanche'!L96,'Debt Avalanche'!O96,'Debt Avalanche'!R96,'Debt Avalanche'!U96,'Debt Avalanche'!X96) -> 0 | K98: 79
I99: 80 | J99: =SUM('Debt Avalanche'!D97,'Debt Avalanche'!F97,'Debt Avalanche'!I97,'Debt Avalanche'!L97,'Debt Avalanche'!O97,'Debt Avalanche'!R97,'Debt Avalanche'!U97,'Debt Avalanche'!X97) -> 0 | K99: 80
I100: 81 | J100: =SUM('Debt Avalanche'!D98,'Debt Avalanche'!F98,'Debt Avalanche'!I98,'Debt Avalanche'!L98,'Debt Avalanche'!O98,'Debt Avalanche'!R98,'Debt Avalanche'!U98,'Debt Avalanche'!X98) -> 0 | K100: 81
I101: 82 | J101: =SUM('Debt Avalanche'!D99,'Debt Avalanche'!F99,'Debt Avalanche'!I99,'Debt Avalanche'!L99,'Debt Avalanche'!O99,'Debt Avalanche'!R99,'Debt Avalanche'!U99,'Debt Avalanche'!X99) -> 0 | K101: 82
I102: 83 | J102: =SUM('Debt Avalanche'!D100,'Debt Avalanche'!F100,'Debt Avalanche'!I100,'Debt Avalanche'!L100,'Debt Avalanche'!O100,'Debt Avalanche'!R100,'Debt Avalanche'!U100,'Debt Avalanche'!X100) -> 0 | K102: 83
I103: 84 | J103: =SUM('Debt Avalanche'!D101,'Debt Avalanche'!F101,'Debt Avalanche'!I101,'Debt Avalanche'!L101,'Debt Avalanche'!O101,'Debt Avalanche'!R101,'Debt Avalanche'!U101,'Debt Avalanche'!X101) -> 0 | K103: 84
I104: 85 | J104: =SUM('Debt Avalanche'!D102,'Debt Avalanche'!F102,'Debt Avalanche'!I102,'Debt Avalanche'!L102,'Debt Avalanche'!O102,'Debt Avalanche'!R102,'Debt Avalanche'!U102,'Debt Avalanche'!X102) -> 0 | K104: 85
I105: 86 | J105: =SUM('Debt Avalanche'!D103,'Debt Avalanche'!F103,'Debt Avalanche'!I103,'Debt Avalanche'!L103,'Debt Avalanche'!O103,'Debt Avalanche'!R103,'Debt Avalanche'!U103,'Debt Avalanche'!X103) -> 0 | K105: 86
I106: 87 | J106: =SUM('Debt Avalanche'!D104,'Debt Avalanche'!F104,'Debt Avalanche'!I104,'Debt Avalanche'!L104,'Debt Avalanche'!O104,'Debt Avalanche'!R104,'Debt Avalanche'!U104,'Debt Avalanche'!X104) -> 0 | K106: 87
I107: 88 | J107: =SUM('Debt Avalanche'!D105,'Debt Avalanche'!F105,'Debt Avalanche'!I105,'Debt Avalanche'!L105,'Debt Avalanche'!O105,'Debt Avalanche'!R105,'Debt Avalanche'!U105,'Debt Avalanche'!X105) -> 0 | K107: 88
I108: 89 | J108: =SUM('Debt Avalanche'!D106,'Debt Avalanche'!F106,'Debt Avalanche'!I106,'Debt Avalanche'!L106,'Debt Avalanche'!O106,'Debt Avalanche'!R106,'Debt Avalanche'!U106,'Debt Avalanche'!X106) -> 0 | K108: 89
I109: 90 | J109: =SUM('Debt Avalanche'!D107,'Debt Avalanche'!F107,'Debt Avalanche'!I107,'Debt Avalanche'!L107,'Debt Avalanche'!O107,'Debt Avalanche'!R107,'Debt Avalanche'!U107,'Debt Avalanche'!X107) -> 0 | K109: 90
I110: 91 | J110: =SUM('Debt Avalanche'!D108,'Debt Avalanche'!F108,'Debt Avalanche'!I108,'Debt Avalanche'!L108,'Debt Avalanche'!O108,'Debt Avalanche'!R108,'Debt Avalanche'!U108,'Debt Avalanche'!X108) -> 0 | K110: 91
I111: 92 | J111: =SUM('Debt Avalanche'!D109,'Debt Avalanche'!F109,'Debt Avalanche'!I109,'Debt Avalanche'!L109,'Debt Avalanche'!O109,'Debt Avalanche'!R109,'Debt Avalanche'!U109,'Debt Avalanche'!X109) -> 0 | K111: 92
I112: 93 | J112: =SUM('Debt Avalanche'!D110,'Debt Avalanche'!F110,'Debt Avalanche'!I110,'Debt Avalanche'!L110,'Debt Avalanche'!O110,'Debt Avalanche'!R110,'Debt Avalanche'!U110,'Debt Avalanche'!X110) -> 0 | K112: 93
I113: 94 | J113: =SUM('Debt Avalanche'!D111,'Debt Avalanche'!F111,'Debt Avalanche'!I111,'Debt Avalanche'!L111,'Debt Avalanche'!O111,'Debt Avalanche'!R111,'Debt Avalanche'!U111,'Debt Avalanche'!X111) -> 0 | K113: 94
I114: 95 | J114: =SUM('Debt Avalanche'!D112,'Debt Avalanche'!F112,'Debt Avalanche'!I112,'Debt Avalanche'!L112,'Debt Avalanche'!O112,'Debt Avalanche'!R112,'Debt Avalanche'!U112,'Debt Avalanche'!X112) -> 0 | K114: 95
I115: 96 | J115: =SUM('Debt Avalanche'!D113,'Debt Avalanche'!F113,'Debt Avalanche'!I113,'Debt Avalanche'!L113,'Debt Avalanche'!O113,'Debt Avalanche'!R113,'Debt Avalanche'!U113,'Debt Avalanche'!X113) -> 0 | K115: 96
I116: 97 | J116: =SUM('Debt Avalanche'!D114,'Debt Avalanche'!F114,'Debt Avalanche'!I114,'Debt Avalanche'!L114,'Debt Avalanche'!O114,'Debt Avalanche'!R114,'Debt Avalanche'!U114,'Debt Avalanche'!X114) -> 0 | K116: 97
I117: 98 | J117: =SUM('Debt Avalanche'!D115,'Debt Avalanche'!F115,'Debt Avalanche'!I115,'Debt Avalanche'!L115,'Debt Avalanche'!O115,'Debt Avalanche'!R115,'Debt Avalanche'!U115,'Debt Avalanche'!X115) -> 0 | K117: 98
I118: 99 | J118: =SUM('Debt Avalanche'!D116,'Debt Avalanche'!F116,'Debt Avalanche'!I116,'Debt Avalanche'!L116,'Debt Avalanche'!O116,'Debt Avalanche'!R116,'Debt Avalanche'!U116,'Debt Avalanche'!X116) -> 0 | K118: 99
I119: 100 | J119: =SUM('Debt Avalanche'!D117,'Debt Avalanche'!F117,'Debt Avalanche'!I117,'Debt Avalanche'!L117,'Debt Avalanche'!O117,'Debt Avalanche'!R117,'Debt Avalanche'!U117,'Debt Avalanche'!X117) -> 0 | K119: 100
I120: 101 | J120: =SUM('Debt Avalanche'!D118,'Debt Avalanche'!F118,'Debt Avalanche'!I118,'Debt Avalanche'!L118,'Debt Avalanche'!O118,'Debt Avalanche'!R118,'Debt Avalanche'!U118,'Debt Avalanche'!X118) -> 0 | K120: 101
I121: 102 | J121: =SUM('Debt Avalanche'!D119,'Debt Avalanche'!F119,'Debt Avalanche'!I119,'Debt Avalanche'!L119,'Debt Avalanche'!O119,'Debt Avalanche'!R119,'Debt Avalanche'!U119,'Debt Avalanche'!X119) -> 0 | K121: 102
I122: 103 | J122: =SUM('Debt Avalanche'!D120,'Debt Avalanche'!F120,'Debt Avalanche'!I120,'Debt Avalanche'!L120,'Debt Avalanche'!O120,'Debt Avalanche'!R120,'Debt Avalanche'!U120,'Debt Avalanche'!X120) -> 0 | K122: 103
I123: 104 | J123: =SUM('Debt Avalanche'!D121,'Debt Avalanche'!F121,'Debt Avalanche'!I121,'Debt Avalanche'!L121,'Debt Avalanche'!O121,'Debt Avalanche'!R121,'Debt Avalanche'!U121,'Debt Avalanche'!X121) -> 0 | K123: 104
I124: 105 | J124: =SUM('Debt Avalanche'!D122,'Debt Avalanche'!F122,'Debt Avalanche'!I122,'Debt Avalanche'!L122,'Debt Avalanche'!O122,'Debt Avalanche'!R122,'Debt Avalanche'!U122,'Debt Avalanche'!X122) -> 0 | K124: 105
I125: 106 | J125: =SUM('Debt Avalanche'!D123,'Debt Avalanche'!F123,'Debt Avalanche'!I123,'Debt Avalanche'!L123,'Debt Avalanche'!O123,'Debt Avalanche'!R123,'Debt Avalanche'!U123,'Debt Avalanche'!X123) -> 0 | K125: 106
I126: 107 | J126: =SUM('Debt Avalanche'!D124,'Debt Avalanche'!F124,'Debt Avalanche'!I124,'Debt Avalanche'!L124,'Debt Avalanche'!O124,'Debt Avalanche'!R124,'Debt Avalanche'!U124,'Debt Avalanche'!X124) -> 0 | K126: 107
I127: 108 | J127: =SUM('Debt Avalanche'!D125,'Debt Avalanche'!F125,'Debt Avalanche'!I125,'Debt Avalanche'!L125,'Debt Avalanche'!O125,'Debt Avalanche'!R125,'Debt Avalanche'!U125,'Debt Avalanche'!X125) -> 0 | K127: 108
I128: 109 | J128: =SUM('Debt Avalanche'!D126,'Debt Avalanche'!F126,'Debt Avalanche'!I126,'Debt Avalanche'!L126,'Debt Avalanche'!O126,'Debt Avalanche'!R126,'Debt Avalanche'!U126,'Debt Avalanche'!X126) -> 0 | K128: 109
I129: 110 | J129: =SUM('Debt Avalanche'!D127,'Debt Avalanche'!F127,'Debt Avalanche'!I127,'Debt Avalanche'!L127,'Debt Avalanche'!O127,'Debt Avalanche'!R127,'Debt Avalanche'!U127,'Debt Avalanche'!X127) -> 0 | K129: 110
I130: 111 | J130: =SUM('Debt Avalanche'!D128,'Debt Avalanche'!F128,'Debt Avalanche'!I128,'Debt Avalanche'!L128,'Debt Avalanche'!O128,'Debt Avalanche'!R128,'Debt Avalanche'!U128,'Debt Avalanche'!X128) -> 0 | K130: 111
I131: 112 | J131: =SUM('Debt Avalanche'!D129,'Debt Avalanche'!F129,'Debt Avalanche'!I129,'Debt Avalanche'!L129,'Debt Avalanche'!O129,'Debt Avalanche'!R129,'Debt Avalanche'!U129,'Debt Avalanche'!X129) -> 0 | K131: 112
I132: 113 | J132: =SUM('Debt Avalanche'!D130,'Debt Avalanche'!F130,'Debt Avalanche'!I130,'Debt Avalanche'!L130,'Debt Avalanche'!O130,'Debt Avalanche'!R130,'Debt Avalanche'!U130,'Debt Avalanche'!X130) -> 0 | K132: 113
I133: 114 | J133: =SUM('Debt Avalanche'!D131,'Debt Avalanche'!F131,'Debt Avalanche'!I131,'Debt Avalanche'!L131,'Debt Avalanche'!O131,'Debt Avalanche'!R131,'Debt Avalanche'!U131,'Debt Avalanche'!X131) -> 0 | K133: 114
I134: 115 | J134: =SUM('Debt Avalanche'!D132,'Debt Avalanche'!F132,'Debt Avalanche'!I132,'Debt Avalanche'!L132,'Debt Avalanche'!O132,'Debt Avalanche'!R132,'Debt Avalanche'!U132,'Debt Avalanche'!X132) -> 0 | K134: 115
I135: 116 | J135: =SUM('Debt Avalanche'!D133,'Debt Avalanche'!F133,'Debt Avalanche'!I133,'Debt Avalanche'!L133,'Debt Avalanche'!O133,'Debt Avalanche'!R133,'Debt Avalanche'!U133,'Debt Avalanche'!X133) -> 0 | K135: 116
I136: 117 | J136: =SUM('Debt Avalanche'!D134,'Debt Avalanche'!F134,'Debt Avalanche'!I134,'Debt Avalanche'!L134,'Debt Avalanche'!O134,'Debt Avalanche'!R134,'Debt Avalanche'!U134,'Debt Avalanche'!X134) -> 0 | K136: 117
I137: 118 | J137: =SUM('Debt Avalanche'!D135,'Debt Avalanche'!F135,'Debt Avalanche'!I135,'Debt Avalanche'!L135,'Debt Avalanche'!O135,'Debt Avalanche'!R135,'Debt Avalanche'!U135,'Debt Avalanche'!X135) -> 0 | K137: 118
I138: 119 | J138: =SUM('Debt Avalanche'!D136,'Debt Avalanche'!F136,'Debt Avalanche'!I136,'Debt Avalanche'!L136,'Debt Avalanche'!O136,'Debt Avalanche'!R136,'Debt Avalanche'!U136,'Debt Avalanche'!X136) -> 0 | K138: 119
I139: 120 | J139: =SUM('Debt Avalanche'!D137,'Debt Avalanche'!F137,'Debt Avalanche'!I137,'Debt Avalanche'!L137,'Debt Avalanche'!O137,'Debt Avalanche'!R137,'Debt Avalanche'!U137,'Debt Avalanche'!X137) -> 0 | K139: 120
